Workbook

Sheet Index
C5: WARNING: This spreadsheet contains rules of thumb and should be used for estimating only
C8: Press | E8: Ventilation Rate, Sizing of Heating & Cooling Loads | K8: Press | M8: Psychrometric Chart
C10: Press | E10: Duct Sizing & Estimation of System Pressure Loss | K10: Press | M10: Psychrometric Calcs
C12: Press | E12: Fan Laws, Changes to Fan Duty | K12: Press | M12: Conversions
C14: Press | E14: Sizing Pressure Relief Outlets, Door Air Loss | K14: Press | M14: Natural Ventilation by Temp Diff.
C16: Press | E16: Duct Weight & Flange Drilling | K16: Press | M16: Load Estimate Sheet
C18: Press | E18: Pressure Loss Spreadsheet | K18: Press | M18: Date Plan Set Up
C20: Press | E20: Sound Attenuation Spreadsheet | K20: Press | M20: U Values
C22: Press | E22: Preliminary Pipe Sizing | K22: Press | M22: Hygrometric Sheet
C24: Press | E24: Air Leakage Test Sheet | K24: Press | M24: Process
C26: Press | E26: Module Temperature | K26: Press | M26: Noise Addition

Sheet HVAC
B2: <<<Back
F3: ENTER | J3: ANSWER
E5: Module Width | F5: 4 | G5: m | I5: m3/s | J5: =(F5*F6*F7*F8)/3600 -> 0.055 | K5: supply airflow
E6: Module Length | F6: 11 | G6: m | I6: deg C | J6: =F9*0.00082 -> 0.492 | K6: pick up from fan
E7: Module Height | F7: 3 | G7: m | I7: kW | J7: =J5*F9/800 -> 0.04125 | K7: typ. Fan power
E8: Required ventilation | F8: 1.5 | G8: ac / h
E9: Fan resistance ~ Est. | F9: 600 | G9: Pa
E10: Required pressurisation | F10: 0 | G10: Pa | I10: m3/s | J10: =J5-(F5*F6*F7-(101325*F5*F6*F7)/(101325+F10)) -> 0.055 | K10: Extract airflow
E12: Winter ambient min | F12: -3 | G12: deg C | I12: kW | J12: =J5*1.2*1.01*(F14-F12) -> 0.86658 | K12: heat loss infiltration
E13: Summer ambient max | F13: 35 | G13: deg C | I13: kW | J13: =J5*1.2*1.01*((F13+J6)-F15) -> 0.49941672 | K13: heat gain infiltration
E14: Internal design Lo | F14: 10 | G14: deg C
E15: Internal design Hi | F15: 28 | G15: deg C
E17: U-Value | F17: 5 | G17: W/m2 deg C | I17: kW | J17: =(F17*(F5*F6*F7)*(F14-F12))/1000 -> 8.58 | K17: winter fabric loss
E18: Equipment gains | F18: 10 | G18: kW | I18: kW | J18: =(F17*(F6*F7*F8)*(F13-F15))/1000 -> 1.7325 | K18: summer fabric gain
E19: Other Gains | F19: 5 | G19: kW | I19: kW | J19: =J12+J17 -> 9.44658 | K19: Winter Heating Load
I20: kW | J20: =J13+J18+F18+F19 -> 17.23191672 | K20: Summer Cooling Load
E21: Branch / Duct volume | F21: 0.1195 | G21: m3/s
E22: Duct velocity | F22: 4 | G22: m/s | I22: mm x mm | J22: =SQRT(F21/F22)*1000 -> 172.8438602 | K22: Square Duct

Sheet Duct Loss
B2: <<<Back
D4: ENTER | J4: ANSWER
C6: Air Volume | D6: 25 | E6: m3/s | I6: Square mm | J6: =SQRT(D6/D8)*1000 -> 1767.766953 | K6: x | L6: =J6 -> 1767.766953
I7: or
C8: Velocity | D8: 8 | E8: m/s | I8: Circular mm | J8: =1000*SQRT((D6/D8)/0.785) -> 1995.217211 | L8: Dia.
I10: Velocity Pressure | J10: =0.6*(D8*D8) -> 38.4 | L10: Pa
I12: Duct Loss / metre | J12: =(0.015624997*D6*D6)/POWER(J8/1000,5) -> 0.3088510255 | L12: Pa
C16: Sum of "k" Factors | D16: 250
C18: Duct Length | D18: 50 | E18: m | I18: System (approx.) loss | J18: =(D16*J10)+D18*J12 -> 9615.442551 | L18: Pa
C24: CIRCULAR EQUIVALENTS OF RECTANGULAR DUCTS
H26: ENTER | L26: ANSWER
C28: RECTANGULAR DUCT SIZE, mm | G28: 2132 | H28: x | I28: 2132 | L28: =1000*SQRT(((G28/1000)*(I28/1000))/0.785) -> 2406.314411 | M28: mm dia.

Sheet Fan Laws
B2: <<<Back
D3: ENTER
D4: Original System Data
C6: Fan Volume | D6: 2.78 | E6: m3/s | H6: (If you don't know the fan power, it should
C7: Fan Pressure | D7: 600 | E7: Pa | H7: be around………. | J7: =D6*D7/(G10*10) -> 2.138461538 | K7: kW)
C8: Fan Speed | D8: 1350 | E8: rpm
C9: Fan Power | D9: 2 | E9: kW | G9: Fan Effy.% = {Vol (m3/s) x Total Press. (Pa)} ÷ (Abs. Power (W) x 10)
G10: 78
D12: CHANGE | J12: NEW
C14: Fan Volume | D14: 2.78 | E14: m3/s | I14: Fan Pressure | J14: =POWER(D14/D6,2)*D7 -> 600 | K14: Pa
I15: Fan Speed | J15: =(D14/D6)*D8 -> 1350 | K15: rpm
I16: Fan Power | J16: =POWER(D14/D6,3)*D9 -> 2 | K16: kW
I18: 440v / …. | J18: =(J16*1000)/583 -> 3.430531732 | K18: Amps

Sheet Misc.
B2: <<<Back
E3: ENTER | J3: ANSWER
D5: Airflow Volume | E5: 0.1 | F5: m3/s | H5: m/s | I5: =SQRT(E7/2.5) -> 4.472135955 | K5: Velocity through opening
D7: Required Pressurisation | E7: 50 | F7: Pa | H7: mm | I7: =SQRT(E5/I5)*1000 -> 149.5348781 | J7: x | K7: =I7 -> 149.5348781 | L7: Pressure relief outlet
D11: Perimeter of door | E11: 5.9 | F11: m | H11: m3/s | I11: =0.827*(E12/1000)*E11*SQRT(E13) -> 0.06900372235 | K11: Air loss through closed door
D12: Width of gap | E12: 2 | F12: (typ 2mm)
D13: Room pressurisation | E13: 50 | F13: Pa

Sheet P Loss
A1: <<<Back | B1: DUCTWORK PRESSURE LOSS CALCULATION
A3: System: | B3: Duct size (mm) | E3: (or) | F3: Equiv. | G3: Volume | H3: Velocity | I3: Vp | J3: Fitting | K3: Length | L3: Loss
A4: Ductwork Element | B4: W | C4: x | D4: H | E4: Dia | F4: Dia (mm) | G4: (m3/s) | H4: (m/s) | I4: (Pa) | J4: "k" | K4: (m) | L4: (Pa)
A6: Supply
A7: Plenum Exit | B7: 250 | C7: x | D7: 250 | F7: =IF(B7=0,E8,1000*SQRT(((B7/1000)*(D7/1000))/0.785)) -> 282.166324 | G7: 0.35 | H7: =G7/(0.785*(F7/1000)*(F7/1000)) -> 5.6 | I7: =(H7*H7)*0.6 -> 18.816 | J7: 4.3 | L7: =IF(K7=0,I7*J7,K7*(0.015624997*(G7*G7)/POWER(F7/1000,5))) -> 80.9088
A8: Duct | B8: 400 | C8: x | D8: 400 | F8: =IF(B8=0,#REF!,1000*SQRT(((B8/1000)*(D8/1000))/0.785)) -> 451.4661184 | G8: 0.525 | H8: 3.28125 | I8: 6.459960938 | K8: 15 | L8: 3.444323967
A9: Fire Damper | B9: 400 | C9: x | D9: 400 | F9: =IF(B9=0,E9,1000*SQRT(((B9/1000)*(D9/1000))/0.785)) -> 451.4661184 | G9: 0.525 | H9: 3.28125 | I9: 6.459960938 | J9: 0.5 | L9: 3.229980469
A10: Bend | B10: 400 | C10: x | D10: 400 | F10: 451.4661184 | G10: 0.525 | H10: 3.28125 | I10: 6.459960938 | J10: 0.35 | L10: 2.260986328
A11: Bend | B11: 400 | C11: x | D11: 400 | F11: 451.4661184 | G11: 0.525 | H11: 3.28125 | I11: 6.459960938 | J11: 0.35 | L11: 2.260986328
A12: Bend | B12: 400 | C12: x | D12: 400 | F12: 451.4661184 | G12: 0.525 | H12: 3.28125 | I12: 6.459960938 | J12: 0.35 | L12: 2.260986328
A13: Bend | B13: 400 | C13: x | D13: 400 | F13: 451.4661184 | G13: 0.525 | H13: 3.28125 | I13: 6.459960938 | J13: 0.35 | L13: 2.260986328
A14: Bend | B14: 400 | C14: x | D14: 400 | F14: 451.4661184 | G14: 0.525 | H14: 3.28125 | I14: 6.459960938 | J14: 0.35 | L14: 2.260986328
A15: VCD | B15: 400 | C15: x | D15: 400 | F15: 451.4661184 | G15: 0.525 | H15: 3.28125 | I15: 6.459960938 | J15: 0.27 | L15: 1.744189453
A16: Supply Grille OBD | B16: 400 | C16: x | D16: 400 | F16: 451.4661184 | G16: 0.525 | H16: 3.28125 | I16: 6.459960938 | J16: 0.52 | L16: 3.359179688
A17: Supply Grille | B17: 400 | C17: x | D17: 400 | F17: 451.4661184 | G17: 0.525 | H17: 3.28125 | I17: 6.459960938 | J17: 1.5 | L17: 9.689941406
C18: x
A19: Supply Total | L19: =SUM(L5:L17) -> 113.6813466
A20: Margin 10% | L20: =ABS(0.1*L19) -> 11.36813466
J22: Total | L22: =SUM(L19:L20) -> 125.0494813
A25: Exhaust
A26: Exhaust EC Grille | B26: 400 | C26: x | D26: 400 | F26: =IF(B26=0,E26,1000*SQRT(((B26/1000)*(D26/1000))/0.785)) -> 451.4661184 | G26: 0.525 | H26: =G26/(0.785*(F26/1000)*(F26/1000)) -> 3.28125 | I26: =(H26*H26)*0.6 -> 6.459960938 | J26: 2 | L26: =IF(K26=0,I26*J26,K26*(0.015624997*(G26*G26)/POWER(F26/1000,5))) -> 12.91992188
A27: Duct | B27: 300 | C27: x | D27: 300 | F27: 338.5995888 | G27: 0.525 | H27: 5.833333333 | I27: 20.41666667 | K27: 4.16 | L27: 4.025313857
A28: Pressure Relief Damper | B28: 300 | C28: x | D28: 300 | F28: 338.5995888 | G28: 0.525 | H28: 5.833333333 | I28: 20.41666667 | J28: 2.3 | L28: 46.95833333
A29: Fire Damper | B29: 300 | C29: x | D29: 300 | F29: 338.5995888 | G29: 0.525 | H29: 5.833333333 | I29: 20.41666667 | J29: 0.2 | L29: 4.083333333
A30: Bend | B30: 300 | C30: x | D30: 300 | F30: 338.5995888 | G30: 0.525 | H30: 5.833333333 | I30: 20.41666667 | K30: 1 | L30: 0.9676235234
A31: Bend | B31: 300 | C31: x | D31: 300 | F31: 338.5995888 | G31: 0.525 | H31: 5.833333333 | I31: 20.41666667 | K31: 1 | L31: 0.9676235234
A32: Bend | B32: 300 | C32: x | D32: 300 | F32: 338.5995888 | G32: 0.525 | H32: 5.833333333 | I32: 20.41666667 | K32: 1 | L32: 0.9676235234
A33: Fire Damper | B33: 300 | C33: x | D33: 300 | F33: 338.5995888 | G33: 0.525 | H33: 5.833333333 | I33: 20.41666667 | J33: 0.2 | L33: 4.083333333
A34: Plenum Entry | B34: 300 | C34: x | D34: 300 | F34: 338.5995888 | G34: 0.525 | H34: 5.833333333 | I34: 20.41666667 | J34: 0.33 | L34: 6.7375
A35: Plenum Outlet | B35: 450 | C35: x | D35: 200 | F35: 338.5995888 | G35: 0.525 | H35: 5.833333333 | I35: 20.41666667 | J35: 0.23 | L35: 4.695833333
A36: Duct | B36: 450 | C36: x | D36: 200 | F36: 338.5995888 | G36: 0.525 | H36: 5.833333333 | I36: 20.41666667 | K36: 6.9 | L36: 6.676602311
A37: 30o Bend | B37: 450 | C37: x | D37: 200 | F37: 338.5995888 | G37: 0.525 | H37: 5.833333333 | I37: 20.41666667 | J37: 0.41 | L37: 8.370833333
A38: 30o Bend | B38: 450 | C38: x | D38: 200 | F38: 338.5995888 | G38: 0.525 | H38: 5.833333333 | I38: 20.41666667 | J38: 0.41 | L38: 8.370833333
A39: Duct | B39: 350 | C39: x | D39: 250 | F39: 333.863697 | G39: 0.525 | H39: 6 | I39: 21.6 | K39: 11.93 | L39: 12.38605495
A40: C/S (450x200) x (350x250) | B40: 350 | C40: x | D40: 250 | F40: 333.863697 | G40: 0.525 | H40: 6 | I40: 21.6 | J40: 0.02 | L40: 0.432
A41: Bend | B41: 350 | C41: x | D41: 250 | F41: 333.863697 | G41: 0.525 | H41: 6 | I41: 21.6 | J41: 0.35 | L41: 7.56
A42: Bend | B42: 350 | C42: x | D42: 250 | F42: 333.863697 | G42: 0.525 | H42: 6 | I42: 21.6 | J42: 0.35 | L42: 7.56
A43: 45o Bend | B43: 350 | C43: x | D43: 250 | F43: 333.863697 | G43: 0.525 | H43: 6 | I43: 21.6 | J43: 0.18 | L43: 3.888
A44: 45o Bend | B44: 350 | C44: x | D44: 250 | F44: 333.863697 | G44: 0.525 | H44: 6 | I44: 21.6 | J44: 0.18 | L44: 3.888
A46: Extract Total | L46: =SUM(L26:L45) -> 145.5387636
A47: Manual Entry:-
A48: Pressurisation (incl in PRD)
A49: Windage Factor (>10%)
A50: Margin 10% | L50: =ABS(0.1*L46) -> 14.55387636
J51: Total | L51: =SUM(L46:L50) -> 160.0926399

Sheet Psych
A1: <<<Back | B1: Psychrometric Chart

Sheet Weight
B2: <<<Back
F4: ENTER
I5: Flange Drilling
D6: Duct Width | F6: 150 | I6: Duct | J6: Backmark | K6: Remnant | L6: Pitches @ | M6: Holes /
D7: Duct Height | F7: 150 | G7: mm | I7: Side | J7: See Note | K7: See Note | L7: 150mm | M7: Bolts
C8: OR | D8: Duct Dia. | F8: 200 | G8: mm | I8: =F6 -> 150 | J8: =F29 -> 40 | K8: =F42 -> 115 | L8: =F40 -> 0 | M8: =F44+G44 -> 8
D9: Metal Thickness | F9: 3 | G9: mm | I9: 150 | J9: =F29 -> 40 | K9: =G42 -> 115 | L9: =G40 -> 0 | M9: =I37 -> M12
D11: Spool Length | F11: 60 | G11: m | I11: Backmark: Distance from the outer edge of flange to corner hole
I12: Remnant: Distance between corner hole and first pitch hole
D13: Flanges: | F13: 12 | G13: No
D14: Angle size | F14: 80 | G14: mm | I14: Duct Weight (Rectangular)
D15: Flg. Thickness | F15: 5 | G15: mm | I15: Item | J15: Material | K15: Weight | M15: Total
J16: m3 | K16: kg | M16: kg
I17: Duct | J17: =2*F11*((F6/1000)*(F9/1000)+(F7/1000)*(F9/1000)) -> 0.108 | K17: =J17*F18 -> 846.72
D18: Density of Material | F18: 7840 | G18: kg/m3 | I18: Flanges | J18: =((F6+100+F6+100+F7+100+F7+100)/1000)*(F14/1000)*(F15/1000)*2*F13 -> 0.0096 | K18: =J18*F18 -> 75.264 | M18: =K17+K18 -> 921.984
D19: (Mild Steel | F19: 7840 | G19: kg/m3) | I19: Duct Weight (Circular)
D20: (St/St | F20: 7900 | G20: kg/m3) | I20: Duct Dia. | J20: Area m2 | K20: Vol. m3 | L20: Weight kg
I21: =F8 -> 200 | J21: =(((F8/1000)*(F8/1000)*22/7)/4)*F11 -> 1.885714286 | K21: =J21*F9/1000 -> 0.005657142857 | L21: =K21*F18 -> 44.352
D27: Duct Size | F27: =F6 -> 150 | G27: =F7 -> 150 | I27: M6
D28: Flange length | F28: =F6+(2*F14) -> 310 | G28: =F7+(2*F14) -> 310 | I28: M8
D29: Backmark | F29: =FLOOR(F14/2,1) -> 40 | G29: =F29 -> 40 | I29: M10
D30: Span | F30: =F28-(2*F29) -> 230 | G30: 230 | I30: M12
D32: 150mm pitches | F32: =FLOOR(F30/150,1) -> 1 | G32: 1
D33: covering | F33: =F32*150 -> 150 | G33: 150
D34: fill | F34: =(F30-F33)/2 -> 40 | G34: 40
I35: =IF(F14>25,I28,I27) -> M8
D36: Amended 150 pitches | F36: =IF(F34<75,F32-1,F32) -> 0 | G36: 0 | I36: =IF(F14>49,I29,I35) -> M10
D37: Amended covering | F37: =F36*150 -> 0 | G37: 0 | I37: =IF(F14>74,I30,I36) -> M12
D38: Amended fill | F38: =(F30-F37)/2 -> 115 | G38: 115
D40: Answer 150 pitches | F40: =IF(F34=0,F36+1,F36) -> 0 | G40: 0
D41: Answer covering | F41: =F40*150 -> 0 | G41: 0
D42: Answer fill | F42: =(F30-F41)/2 -> 115 | G42: 115
D44: Holes | F44: =2*(IF(F42=0,F40,F40+2)) -> 4 | G44: 4

Sheet Calc
C1: <<< Back
K3: Air Mix
E5: 1 | L5: Q1 | M5: Q2 | O5: Q3
D7: in | K7: Airflow | L7: 3.433 | M7: 2.456 | O7: =L7+M7 -> 5.889 | P7: m3/s
C8: Airflow | D8: 5.889 | E8: m3/s | K8: Mix % | L8: 58.3 | M8: 41.l7 | O8: =O7/O7% -> 100 | P8: %
C10: Sp Vol | D10: 0.85 | E10: m3/kg | K10: Sp Enthalpy | L10: 46 | M10: 59.8 | O10: =((L8*L10)+(M8*M10))/100 -> #VALUE! | P10: KJ/kg
D11: High | F11: Low | K11: M.Content | L11: 0.0115 | M11: 0.01 | O11: =((L8*L11)+(M8*M11))/100 -> #VALUE! | P11: kg/kg
C12: Specific Enthalpy | D12: 129.4 | F12: 99.98 | G12: KJ/kg | K12: Temperature | L12: 23 | M12: 23 | O12: =((L8*L12)+(M8*M12))/100 -> #VALUE! | P12: OC
C14: Moisture Content | D14: 0.03673 | F14: 0.02731 | G14: kg/kg
C16: =IF(E5=1,"HEATING","COOLING") -> HEATING
C18: =IF(E5=1,"Sensible Heating","Sensible Cooling") -> Sensible Heating | F18: =IF(F20<0,"",F20-F19) -> 56.46262348 | G18: =IF(F20<0,"","kW") -> kW
C19: =IF(E5=1,"Humidification","De-humidification") -> Humidification | F19: =IF(F20<0,"",2258*F21) -> 147.3660589 | G19: =IF(F20<0,"","kW") -> kW
C20: =IF(E5=1,"Total Change","Total Cooling") -> Total Change | F20: =D8*(D12-F12)/D10 -> 203.8286824 | G20: =IF(F20<0,"","kW") -> kW
C21: =IF(E5=1,"Moisture Added","Moisture Drop out") -> Moisture Added | F21: =D8*(D14-F14)/D10 -> 0.06526397647 | G21: =IF((D14-F14)>0,"l/s","") -> l/s
F22: =IF(F20<0,"Data incorrect","") -> 

Sheet Load
A1: <<< Back
G3: LOAD ESTIMATE SHEET
A5: JOB/REF No. | H5: ESTIMATED BY:- | K5: DATE:-
A6: LOCATION:- | H6: CHECKED BY:- | K6: DATE:-
A7: SHEET | C7: OF | H7: APPROVED BY:- | K7: DATE:-
A8: TRANSMITTED HEAT GAINS AND LOSSES
A9: ITEM | B9: DESCRIPTION | F9: AREA, | G9: U | H9: WINTER | I9: HEAT | J9: SUMMER | L9: HEAT
A10: No. | F10: m2 | G10: VALUE | H10: TEMP DIFF OC | I10: LOSS, W. | J10: TEMP DIFF OC | L10: GAIN, W.
A11: 1 | B11: EXT. WALL GROSS. | F11: 400 | G11: - | H11: - | I11: - | J11: - | L11: -
A12: 2 | B12: EXT. GLASS. | F12: 30 | H12: 21 | I12: =F12*G12*H12 -> 0 | J12: 7 | L12: =F12*G12*J12 -> 0
A13: 3 | B13: EXT. WALL NETT. | F13: =F11-F12 -> 370 | G13: 0.6 | H13: 21 | I13: 4662 | J13: 7 | L13: 1554
A14: 4 | B14: INT. WALLS. | F14: 190 | G14: 0.8 | H14: 6 | I14: 912 | J14: 6 | L14: 912
A15: 5 | B15: INT. GLASS. | F15: 10 | G15: 5.6 | H15: 6 | I15: 336 | J15: 6 | L15: 336
A16: 6 | B16: FLOOR. | F16: 200 | G16: 0.36 | H16: 21 | I16: 1512 | J16: 0 | L16: 0
A17: 7 | B17: ROOF. | F17: 200 | G17: 1.5 | H17: 21 | I17: 6300 | J17: 7 | L17: 2100
A18: 8 | B18: MISC. | F18: 0 | G18: 0 | H18: 0 | I18: 0 | L18: 0
A19: 9 | B19: TOTAL GAINS AND LOSSES, W. | I19: =SUM(I12:I18) -> 13722 | L19: =SUM(L12:L18) -> 4902
A20: SOLAR HEAT GAINS | F20: AREA, m2 | G20: U VALUE | H20: teo,oC. | I20: ti,oC. | J20: TEMP DIFF OC | L20: HEAT GAIN, W.
A21: 10 | B21: WALL. | F21: 370 | G21: 0.6 | H21: 43.6 | I21: 21 | J21: =(H21-I21) -> 22.6 | L21: =F21*G21*J21 -> 5017.2
A22: 11 | B22: WALL. | F22: 40 | G22: 0.6 | H22: 27.5 | I22: 21 | J22: 6.5 | L22: 156
A23: 12 | B23: GLASS. | F23: 30 | G23: 5.6 | H23: 43.6 | I23: 21 | J23: 22.6 | L23: 3796.8
A24: 13 | B24: GLASS. | J24: 0 | L24: 0
A25: 14 | B25: ROOF. | F25: 200 | G25: 1.5 | H25: 43.2 | I25: 21 | J25: =H25-I25 -> 22.2 | L25: 6660
A26: 15 | B26: ROOFLIGHTS. | F26: 0 | G26: 5.6 | H26: 43.2 | I26: 21 | J26: 22.2 | L26: 0
A27: 16 | B27: MISC. | J27: 0 | L27: 0
A28: 17 | B28: TOTAL SOLAR HEAT GAINS, W. | L28: =SUM(L21:L27) -> 15630
A29: BODY GAINS | F29: SENS., W. | G29: LAT., W. | H29: HEAT GAIN SUMMARY
A30: 18 | B30: NO. | C30: 24 | D30: x | E30: 100 | F30: =C30*E30 -> 2400 | H30: ITEM No. | I30: ITEM | L30: GAIN, W.
A31: 19 | B31: NO. | D31: x | F31: 0 | H31: 9 | I31: TRANSMITTANCE. | L31: =L19 -> 4902
A32: 20 | B32: NO. | C32: 24 | D32: x | E32: 50 | G32: =C32*E32 -> 1200 | H32: 17 | I32: SOLAR. | L32: =L28 -> 15630
A33: 21 | B33: TOTAL BODY GAIN. | F33: =SUM(F30+F31) -> 2400 | G33: =C32*E32 -> 1200 | H33: 21 | I33: BODY. (SENSIBLE). | L33: =F33 -> 2400
A34: EQUIPMENT GAINS | H34: 28 | I34: EQUIPMENT. | L34: =F41 -> 13550
A35: 22 | B35: LIGHTING. | D35: 60 | E35: 200 | F35: =D35*E35 -> 12000 | H35: 31 | I35: INFILTRATION. | L35: =F45 -> 4705.555556
A36: 23 | B36: SMALL MOTORS | D36: 350 | E36: 1 | F36: 350 | H36: 32 | I36: TOTAL SENSIBLE. | L36: =SUM(L31:L35) -> 41187.55556
A37: 24 | B37: LARGE MOTORS | D37: 600 | E37: 2 | F37: 1200 | H37: 33 | I37: TOTAL LATENT. | L37: =G33 -> 1200
A38: 25 | B38: ELECTRICAL PLANT | F38: =E38 ->  | H38: 34 | I38: TOTAL HEAT GAIN. | L38: =L36+L37 -> 42387.55556
A39: 26 | B39: GAS PLANT | F39: =D39+E39 -> 0 | H39: 35 | I39: S.H.R.= (ITEM 32/ITEM 34) % | L39: =(L36/L38) -> 0.9716898041
A40: 27 | B40: MISC. | F40: =SUM(C40+D40+E40) -> 0 | H40: 36 | I40: d.b.SUPPLY AIR TEMP.OC | L40: 11
A41: 28 | B41: TOTAL EQUIPMENT GAINS, W. | F41: =SUM(F35:F40) -> 13550 | H41: 37 | I41: w.b. SUPPLY AIR TEMP.OC | L41: 10
A42: INFILTRATION GAINS | H42: 38 | I42: d.b. SUPPLY AIR TEMP. RISE OC | L42: =G48-L40 -> 10
A43: 29 | B43: ac/h | C43: HEIGHT | D43: LENGTH | E43: WIDTH | H43: 39 | I43: PRELIMINARY S.A.V. (m3/s) | L43: =(L38*0.00083)/L42 -> 3.518167111
A44: 30 | B44: 0.5 | C44: 20 | D44: 20 | E44: 10 | F44: =(B44*C44*D44*E44)*(1.21/3.6)*(F48-G48) -> 4705.555556 | H44: 41 | I44: DUCT GAIN = SAVx1.21x 2OC, W | L44: =L43*1.21*2*1000 -> 8513.964409
A45: 31 | B45: TOTAL INFILTRATION GAINS. | F45: =(B44*C44*D44*E44)*(1.21/3.6)*(F48-G48) -> 4705.555556 | H45: 42 | I45: S.A.V. INC. DUCT GAIN (ITEM 32 + ITEM 41)*1.21*ITEM 38 | L45: =(L38+L44)/(1000*1.21*L42) -> 4.206737187
A46: DESIGN DATA
A47: SUMMER | F47: To, OC | G47: Ti, OC | H47: 43 | I47: F.A REQ.=Occupancy.x m3/s/head. | L47: =I48*K48 -> 0.36
A48: d.b. TEMPERATURE | F48: 28 | G48: 21 | I48: 24 | J48: X | K48: 0.015
A49: w.b. TEMPERATURE | H49: 44 | I49: FRESH AIR GAIN, W = | L49: =L47*1.21*(F48-G48)*1000 -> 3049.2
A50: DEW POINT | I50: ITEM 43 x 1.21 x (To-Ti)
A51: RELATIVE HUMIDITY | F51: 0.5 | G51: 0.5 | I51: COOLING LOAD, W
A52: ENTHALPY | I52: ITEM 34 | L52: =L38 -> 42387.55556
A53: MOISTURE CONTENT | I53: ITEM 41 | L53: =L44 -> 8513.964409
A54: WINTER d.b. TEMP. | F54: 0 | H54: 45 | I54: TOTAL COOLING LOAD, W. | L54: =L52+L53 -> 50901.51996
A55: LATITUDE:- | H55: 46 | I55: EQUIV. COOLING LOAD, T.R. | L55: =L54/3517 -> 14.47299402
A56: DATE:- | C56: 24th Aug. | D56: TIME:- | E56: 12:00:00 | H56: Notes: | I56: No. of Air Changes per hour = | L56: =(((L38+L44)/(1000*1.21*L42))*3600)/(C44*D44*E44) -> 3.786063468
D57: WALL:- | E57: LIGHT | F57: MEDIUM | G57: DARK | H57: All Temperatures, U-Values and other Design Data
D58: ROOF:- | E58: LIGHT | F58: MEDIUM | G58: DARK | H58: to be obtained from relevant C.I.B.S.E. Guide.
D59: GLAZING:- | E59: AWNINGS | F59: SHADE | G59: BARE | H59: All dimensions in metres.
F63: =SUM(M41) -> 0

Sheet Conv.
B2: <<<Back
D3: ENTER
D4: Imperial to Metric
C6: cfm | D6: 29 | F6: =D6/2119 -> 0.0136857008 | G6: m3/s | K6: ENTER
C7: gpm | D7: 33 | F7: =D7/13.2 -> 2.5 | G7: l/s | K7: Pressure | L7: Pa
C8: ft/min | D8: 1000 | F8: =D8/196.75 -> 5.082592122 | G8: m/s | K8: 1000
C9: Btu/hr | D9: 50000 | F9: =D9/3412 -> 14.65416178 | G9: kW
C10: HP | D10: 1 | F10: =D10/1.36 -> 0.7352941176 | G10: kW | K10: read
C11: mph | D11: 21 | F11: =D11/0.6214 -> 33.79465723 | G11: km/h | K11: =K8 -> 1000 | L11: N/m2
C12: knot | D12: 1 | F12: =D12*0.514 -> 0.514 | G12: m/s | K12: =K8*0.004015 -> 4.015 | L12: "wg
C13: inches | D13: 1 | F13: =D13*25.4 -> 25.4 | G13: mm | K13: =K8*0.102 -> 102 | L13: mm wg
C14: feet | D14: 22 | F14: =D14*0.3048 -> 6.7056 | G14: m | K14: =K8*0.0002953 -> 0.2953 | L14: "hg
C15: sq. yards | D15: 23 | F15: =D15/1.196 -> 19.23076923 | G15: m2 | K15: =K8/133 -> 7.518796992 | L15: mm hg
C16: lbs | D16: 2.2 | F16: =D16/2.20462 -> 0.9979044008 | G16: kg | K16: =K8*0.000145 -> 0.145 | L16: psi
C17: gallon | D17: 1 | F17: =D17*4.55 -> 4.55 | G17: litres | K17: =K15 -> 7.518796992 | L17: torr
C18: " water | D18: 45 | F18: =D18*249.1 -> 11209.5 | G18: Pa | K18: =K8/100 -> 10 | L18: m.bar
C19: oF | D19: 70 | F19: =(5/9)*(D19-32) -> 21.11111111 | G19: oC | K19: =K18/1000 -> 0.01 | L19: bar
C20: oC | D20: 50 | F20: =((9/5)*(D20))+32 -> 122 | G20: oF

Sheet Plan
B3: Start Date: | C3: 2001-10-22 | D3: Days freq. | E3: 1
B5: Days long | C5: 13 | D5: <<<Back | F5: =IF(F9="","",CHOOSE(F7,"M","Tu","W","Th","F","Sa","Su")) -> M | G5: Tu | H5: W | I5: Th | J5: F | K5: Sa | L5: Su | M5: M | N5: Tu | O5: W | P5: Th | Q5: F | R5: Sa
F7: =IF(F9="","",WEEKDAY(F10,2)) -> 1 | G7: 2 | H7: 3 | I7: 4 | J7: 5 | K7: 6 | L7: 7 | M7: 1 | N7: 2 | O7: 3 | P7: 4 | Q7: 5 | R7: 6
F8: =F9 -> 1900-01-01 | G8: 1900-01-02 | H8: 1900-01-03 | I8: 1900-01-04 | J8: 1900-01-05 | K8: 1900-01-06 | L8: 1900-01-07 | M8: 1900-01-08 | N8: 1900-01-09 | O8: 1900-01-10 | P8: 1900-01-11 | Q8: 1900-01-12 | R8: 1900-01-13
C9: Today's date is: | D9: =TODAY() -> 2023-12-09 | E9: Day No >> | F9: 1 | G9: =IF(F9<Plan!$C$5,F9+Plan!$E$3,"") -> 2 | H9: =IF(G9<Plan!$C$5,G9+Plan!$E$3,"") -> 3 | I9: =IF(H9<Plan!$C$5,H9+Plan!$E$3,"") -> 4 | J9: =IF(I9<Plan!$C$5,I9+Plan!$E$3,"") -> 5 | K9: =IF(J9<Plan!$C$5,J9+Plan!$E$3,"") -> 6 | L9: =IF(K9<Plan!$C$5,K9+Plan!$E$3,"") -> 7 | M9: =IF(L9<Plan!$C$5,L9+Plan!$E$3,"") -> 8 | N9: =IF(M9<Plan!$C$5,M9+Plan!$E$3,"") -> 9 | O9: =IF(N9<Plan!$C$5,N9+Plan!$E$3,"") -> 10 | P9: =IF(O9<Plan!$C$5,O9+Plan!$E$3,"") -> 11 | Q9: =IF(P9<Plan!$C$5,P9+Plan!$E$3,"") -> 12 | R9: =IF(Q9<Plan!$C$5,Q9+Plan!$E$3,"") -> 13 | S9: =IF(R9<Plan!$C$5,R9+Plan!$E$3,"") ->  | T9: =IF(S9<Plan!$C$5,S9+Plan!$E$3,"") ->  | U9: =IF(T9<Plan!$C$5,T9+Plan!$E$3,"") ->  | V9: =IF(U9<Plan!$C$5,U9+Plan!$E$3,"") ->  | W9: =IF(V9<Plan!$C$5,V9+Plan!$E$3,"") ->  | X9: =IF(W9<Plan!$C$5,W9+Plan!$E$3,"") ->  | Y9: =IF(X9<Plan!$C$5,X9+Plan!$E$3,"") ->  | Z9: =IF(Y9<Plan!$C$5,Y9+Plan!$E$3,"") ->  | AA9: =IF(Z9<Plan!$C$5,Z9+Plan!$E$3,"") ->  | AB9: =IF(AA9<Plan!$C$5,AA9+Plan!$E$3,"") ->  | AC9: =IF(AB9<Plan!$C$5,AB9+Plan!$E$3,"") ->  | AD9: =IF(AC9<Plan!$C$5,AC9+Plan!$E$3,"") ->  | AE9: =IF(AD9<Plan!$C$5,AD9+Plan!$E$3,"") ->  | AF9: =IF(AE9<Plan!$C$5,AE9+Plan!$E$3,"") ->  | AG9: =IF(AF9<Plan!$C$5,AF9+Plan!$E$3,"") ->  | AH9: =IF(AG9<Plan!$C$5,AG9+Plan!$E$3,"") ->  | AI9: =IF(AH9<Plan!$C$5,AH9+Plan!$E$3,"") ->  | AJ9: =IF(AI9<Plan!$C$5,AI9+Plan!$E$3,"") ->  | AK9: =IF(AJ9<Plan!$C$5,AJ9+Plan!$E$3,"") ->  | AL9: =IF(AK9<Plan!$C$5,AK9+Plan!$E$3,"") ->  | AM9: =IF(AL9<Plan!$C$5,AL9+Plan!$E$3,"") ->  | AN9: =IF(AM9<Plan!$C$5,AM9+Plan!$E$3,"") ->  | AO9: =IF(AN9<Plan!$C$5,AN9+Plan!$E$3,"") ->  | AP9: =IF(AO9<Plan!$C$5,AO9+Plan!$E$3,"") ->  | AQ9: =IF(AP9<Plan!$C$5,AP9+Plan!$E$3,"") ->  | AR9: =IF(AQ9<Plan!$C$5,AQ9+Plan!$E$3,"") ->  | AS9: =IF(AR9<Plan!$C$5,AR9+Plan!$E$3,"") ->  | AT9: =IF(AS9<Plan!$C$5,AS9+Plan!$E$3,"") ->  | AU9: =IF(AT9<Plan!$C$5,AT9+Plan!$E$3,"") ->  | AV9: =IF(AU9<Plan!$C$5,AU9+Plan!$E$3,"") ->  | AW9: =IF(AV9<Plan!$C$5,AV9+Plan!$E$3,"") ->  | AX9: =IF(AW9<Plan!$C$5,AW9+Plan!$E$3,"") ->  | AY9: =IF(AX9<Plan!$C$5,AX9+Plan!$E$3,"") ->  | AZ9: =IF(AY9<Plan!$C$5,AY9+Plan!$E$3,"") ->  | BA9: =IF(AZ9<Plan!$C$5,AZ9+Plan!$E$3,"") ->  | BB9: =IF(BA9<Plan!$C$5,BA9+Plan!$E$3,"") ->  | BC9: =IF(BB9<Plan!$C$5,BB9+Plan!$E$3,"") ->  | BD9: =IF(BC9<Plan!$C$5,BC9+Plan!$E$3,"") ->  | BE9: =IF(BD9<Plan!$C$5,BD9+Plan!$E$3,"") ->  | BF9: =IF(BE9<Plan!$C$5,BE9+Plan!$E$3,"") ->  | BG9: =IF(BF9<Plan!$C$5,BF9+Plan!$E$3,"") ->  | BH9: =IF(BG9<Plan!$C$5,BG9+Plan!$E$3,"") ->  | BI9: =IF(BH9<Plan!$C$5,BH9+Plan!$E$3,"") ->  | BJ9: =IF(BI9<Plan!$C$5,BI9+Plan!$E$3,"") ->  | BK9: =IF(BJ9<Plan!$C$5,BJ9+Plan!$E$3,"") ->  | BL9: =IF(BK9<Plan!$C$5,BK9+Plan!$E$3,"") ->  | BM9: =IF(BL9<Plan!$C$5,BL9+Plan!$E$3,"") ->  | BN9: =IF(BM9<Plan!$C$5,BM9+Plan!$E$3,"") ->  | BO9: =IF(BN9<Plan!$C$5,BN9+Plan!$E$3,"") ->  | BP9: =IF(BO9<Plan!$C$5,BO9+Plan!$E$3,"") ->  | BQ9: =IF(BP9<Plan!$C$5,BP9+Plan!$E$3,"") ->  | BR9: =IF(BQ9<Plan!$C$5,BQ9+Plan!$E$3,"") ->  | BS9: =IF(BR9<Plan!$C$5,BR9+Plan!$E$3,"") ->  | BT9: =IF(BS9<Plan!$C$5,BS9+Plan!$E$3,"") ->  | BU9: =IF(BT9<Plan!$C$5,BT9+Plan!$E$3,"") ->  | BV9: =IF(BU9<Plan!$C$5,BU9+Plan!$E$3,"") ->  | BW9: =IF(BV9<Plan!$C$5,BV9+Plan!$E$3,"") ->  | BX9: =IF(BW9<Plan!$C$5,BW9+Plan!$E$3,"") ->  | BY9: =IF(BX9<Plan!$C$5,BX9+Plan!$E$3,"") ->  | BZ9: =IF(BY9<Plan!$C$5,BY9+Plan!$E$3,"") ->  | CA9: =IF(BZ9<Plan!$C$5,BZ9+Plan!$E$3,"") ->  | CB9: =IF(CA9<Plan!$C$5,CA9+Plan!$E$3,"") ->  | CC9: =IF(CB9<Plan!$C$5,CB9+Plan!$E$3,"") ->  | CD9: =IF(CC9<Plan!$C$5,CC9+Plan!$E$3,"") ->  | CE9: =IF(CD9<Plan!$C$5,CD9+Plan!$E$3,"") ->  | CF9: =IF(CE9<Plan!$C$5,CE9+Plan!$E$3,"") ->  | CG9: =IF(CF9<Plan!$C$5,CF9+Plan!$E$3,"") ->  | CH9: =IF(CG9<Plan!$C$5,CG9+Plan!$E$3,"") ->  | CI9: =IF(CH9<Plan!$C$5,CH9+Plan!$E$3,"") ->  | CJ9: =IF(CI9<Plan!$C$5,CI9+Plan!$E$3,"") ->  | CK9: =IF(CJ9<Plan!$C$5,CJ9+Plan!$E$3,"") ->  | CL9: =IF(CK9<Plan!$C$5,CK9+Plan!$E$3,"") ->  | CM9: =IF(CL9<Plan!$C$5,CL9+Plan!$E$3,"") ->  | CN9: =IF(CM9<Plan!$C$5,CM9+Plan!$E$3,"") ->  | CO9: =IF(CN9<Plan!$C$5,CN9+Plan!$E$3,"") ->  | CP9: =IF(CO9<Plan!$C$5,CO9+Plan!$E$3,"") ->  | CQ9: =IF(CP9<Plan!$C$5,CP9+Plan!$E$3,"") ->  | CR9: =IF(CQ9<Plan!$C$5,CQ9+Plan!$E$3,"") ->  | CS9: =IF(CR9<Plan!$C$5,CR9+Plan!$E$3,"") ->  | CT9: =IF(CS9<Plan!$C$5,CS9+Plan!$E$3,"") ->  | CU9: =IF(CT9<Plan!$C$5,CT9+Plan!$E$3,"") ->  | CV9: =IF(CU9<Plan!$C$5,CU9+Plan!$E$3,"") ->  | CW9: =IF(CV9<Plan!$C$5,CV9+Plan!$E$3,"") ->  | CX9: =IF(CW9<Plan!$C$5,CW9+Plan!$E$3,"") ->  | CY9: =IF(CX9<Plan!$C$5,CX9+Plan!$E$3,"") ->  | CZ9: =IF(CY9<Plan!$C$5,CY9+Plan!$E$3,"") ->  | DA9: =IF(CZ9<Plan!$C$5,CZ9+Plan!$E$3,"") ->  | DB9: =IF(DA9<Plan!$C$5,DA9+Plan!$E$3,"") ->  | DC9: =IF(DB9<Plan!$C$5,DB9+Plan!$E$3,"") ->  | DD9: =IF(DC9<Plan!$C$5,DC9+Plan!$E$3,"") ->  | DE9: =IF(DD9<Plan!$C$5,DD9+Plan!$E$3,"") ->  | DF9: =IF(DE9<Plan!$C$5,DE9+Plan!$E$3,"") ->  | DG9: =IF(DF9<Plan!$C$5,DF9+Plan!$E$3,"") ->  | DH9: =IF(DG9<Plan!$C$5,DG9+Plan!$E$3,"") ->  | DI9: =IF(DH9<Plan!$C$5,DH9+Plan!$E$3,"") ->  | DJ9: =IF(DI9<Plan!$C$5,DI9+Plan!$E$3,"") ->  | DK9: =IF(DJ9<Plan!$C$5,DJ9+Plan!$E$3,"") ->  | DL9: =IF(DK9<Plan!$C$5,DK9+Plan!$E$3,"") ->  | DM9: =IF(DL9<Plan!$C$5,DL9+Plan!$E$3,"") ->  | DN9: =IF(DM9<Plan!$C$5,DM9+Plan!$E$3,"") ->  | DO9: =IF(DN9<Plan!$C$5,DN9+Plan!$E$3,"") ->  | DP9: =IF(DO9<Plan!$C$5,DO9+Plan!$E$3,"") ->  | DQ9: =IF(DP9<Plan!$C$5,DP9+Plan!$E$3,"") ->  | DR9: =IF(DQ9<Plan!$C$5,DQ9+Plan!$E$3,"") ->  | DS9: =IF(DR9<Plan!$C$5,DR9+Plan!$E$3,"") ->  | DT9: =IF(DS9<Plan!$C$5,DS9+Plan!$E$3,"") ->  | DU9: =IF(DT9<Plan!$C$5,DT9+Plan!$E$3,"") ->  | DV9: =IF(DU9<Plan!$C$5,DU9+Plan!$E$3,"") ->  | DW9: =IF(DV9<Plan!$C$5,DV9+Plan!$E$3,"") ->  | DX9: =IF(DW9<Plan!$C$5,DW9+Plan!$E$3,"") ->  | DY9: =IF(DX9<Plan!$C$5,DX9+Plan!$E$3,"") ->  | DZ9: =IF(DY9<Plan!$C$5,DY9+Plan!$E$3,"") ->  | EA9: =IF(DZ9<Plan!$C$5,DZ9+Plan!$E$3,"") ->  | EB9: =IF(EA9<Plan!$C$5,EA9+Plan!$E$3,"") ->  | EC9: =IF(EB9<Plan!$C$5,EB9+Plan!$E$3,"") ->  | ED9: =IF(EC9<Plan!$C$5,EC9+Plan!$E$3,"") ->  | EE9: =IF(ED9<Plan!$C$5,ED9+Plan!$E$3,"") ->  | EF9: =IF(EE9<Plan!$C$5,EE9+Plan!$E$3,"") ->  | EG9: =IF(EF9<Plan!$C$5,EF9+Plan!$E$3,"") ->  | EH9: =IF(EG9<Plan!$C$5,EG9+Plan!$E$3,"") ->  | EI9: =IF(EH9<Plan!$C$5,EH9+Plan!$E$3,"") ->  | EJ9: =IF(EI9<Plan!$C$5,EI9+Plan!$E$3,"") ->  | EK9: =IF(EJ9<Plan!$C$5,EJ9+Plan!$E$3,"") ->  | EL9: =IF(EK9<Plan!$C$5,EK9+Plan!$E$3,"") ->  | EM9: =IF(EL9<Plan!$C$5,EL9+Plan!$E$3,"") ->  | EN9: =IF(EM9<Plan!$C$5,EM9+Plan!$E$3,"") ->  | EO9: =IF(EN9<Plan!$C$5,EN9+Plan!$E$3,"") ->  | EP9: =IF(EO9<Plan!$C$5,EO9+Plan!$E$3,"") ->  | EQ9: =IF(EP9<Plan!$C$5,EP9+Plan!$E$3,"") ->  | ER9: =IF(EQ9<Plan!$C$5,EQ9+Plan!$E$3,"") ->  | ES9: =IF(ER9<Plan!$C$5,ER9+Plan!$E$3,"") ->  | ET9: =IF(ES9<Plan!$C$5,ES9+Plan!$E$3,"") ->  | EU9: =IF(ET9<Plan!$C$5,ET9+Plan!$E$3,"") ->  | EV9: =IF(EU9<Plan!$C$5,EU9+Plan!$E$3,"") ->  | EW9: =IF(EV9<Plan!$C$5,EV9+Plan!$E$3,"") ->  | EX9: =IF(EW9<Plan!$C$5,EW9+Plan!$E$3,"") ->  | EY9: =IF(EX9<Plan!$C$5,EX9+Plan!$E$3,"") ->  | EZ9: =IF(EY9<Plan!$C$5,EY9+Plan!$E$3,"") ->  | FA9: =IF(EZ9<Plan!$C$5,EZ9+Plan!$E$3,"") ->  | FB9: =IF(FA9<Plan!$C$5,FA9+Plan!$E$3,"") ->  | FC9: =IF(FB9<Plan!$C$5,FB9+Plan!$E$3,"") ->  | FD9: =IF(FC9<Plan!$C$5,FC9+Plan!$E$3,"") ->  | FE9: =IF(FD9<Plan!$C$5,FD9+Plan!$E$3,"") ->  | FF9: =IF(FE9<Plan!$C$5,FE9+Plan!$E$3,"") ->  | FG9: =IF(FF9<Plan!$C$5,FF9+Plan!$E$3,"") ->  | FH9: =IF(FG9<Plan!$C$5,FG9+Plan!$E$3,"") ->  | FI9: =IF(FH9<Plan!$C$5,FH9+Plan!$E$3,"") ->  | FJ9: =IF(FI9<Plan!$C$5,FI9+Plan!$E$3,"") ->  | FK9: =IF(FJ9<Plan!$C$5,FJ9+Plan!$E$3,"") ->  | FL9: =IF(FK9<Plan!$C$5,FK9+Plan!$E$3,"") ->  | FM9: =IF(FL9<Plan!$C$5,FL9+Plan!$E$3,"") ->  | FN9: =IF(FM9<Plan!$C$5,FM9+Plan!$E$3,"") ->  | FO9: =IF(FN9<Plan!$C$5,FN9+Plan!$E$3,"") ->  | FP9: =IF(FO9<Plan!$C$5,FO9+Plan!$E$3,"") ->  | FQ9: =IF(FP9<Plan!$C$5,FP9+Plan!$E$3,"") ->  | FR9: =IF(FQ9<Plan!$C$5,FQ9+Plan!$E$3,"") ->  | FS9: =IF(FR9<Plan!$C$5,FR9+Plan!$E$3,"") ->  | FT9: =IF(FS9<Plan!$C$5,FS9+Plan!$E$3,"") ->  | FU9: =IF(FT9<Plan!$C$5,FT9+Plan!$E$3,"") ->  | FV9: =IF(FU9<Plan!$C$5,FU9+Plan!$E$3,"") ->  | FW9: =IF(FV9<Plan!$C$5,FV9+Plan!$E$3,"") ->  | FX9: =IF(FW9<Plan!$C$5,FW9+Plan!$E$3,"") ->  | FY9: =IF(FX9<Plan!$C$5,FX9+Plan!$E$3,"") ->  | FZ9: =IF(FY9<Plan!$C$5,FY9+Plan!$E$3,"") ->  | GA9: =IF(FZ9<Plan!$C$5,FZ9+Plan!$E$3,"") ->  | GB9: =IF(GA9<Plan!$C$5,GA9+Plan!$E$3,"") ->  | GC9: =IF(GB9<Plan!$C$5,GB9+Plan!$E$3,"") ->  | GD9: =IF(GC9<Plan!$C$5,GC9+Plan!$E$3,"") ->  | GE9: =IF(GD9<Plan!$C$5,GD9+Plan!$E$3,"") ->  | GF9: =IF(GE9<Plan!$C$5,GE9+Plan!$E$3,"") ->  | GG9: =IF(GF9<Plan!$C$5,GF9+Plan!$E$3,"") ->  | GH9: =IF(GG9<Plan!$C$5,GG9+Plan!$E$3,"") ->  | GI9: =IF(GH9<Plan!$C$5,GH9+Plan!$E$3,"") ->  | GJ9: =IF(GI9<Plan!$C$5,GI9+Plan!$E$3,"") ->  | GK9: =IF(GJ9<Plan!$C$5,GJ9+Plan!$E$3,"") ->  | GL9: =IF(GK9<Plan!$C$5,GK9+Plan!$E$3,"") ->  | GM9: =IF(GL9<Plan!$C$5,GL9+Plan!$E$3,"") ->  | GN9: =IF(GM9<Plan!$C$5,GM9+Plan!$E$3,"") ->  | GO9: =IF(GN9<Plan!$C$5,GN9+Plan!$E$3,"") ->  | GP9: =IF(GO9<Plan!$C$5,GO9+Plan!$E$3,"") ->  | GQ9: =IF(GP9<Plan!$C$5,GP9+Plan!$E$3,"") ->  | GR9: =IF(GQ9<Plan!$C$5,GQ9+Plan!$E$3,"") ->  | GS9: =IF(GR9<Plan!$C$5,GR9+Plan!$E$3,"") ->  | GT9: =IF(GS9<Plan!$C$5,GS9+Plan!$E$3,"") ->  | GU9: =IF(GT9<Plan!$C$5,GT9+Plan!$E$3,"") ->  | GV9: =IF(GU9<Plan!$C$5,GU9+Plan!$E$3,"") ->  | GW9: =IF(GV9<Plan!$C$5,GV9+Plan!$E$3,"") ->  | GX9: =IF(GW9<Plan!$C$5,GW9+Plan!$E$3,"") ->  | GY9: =IF(GX9<Plan!$C$5,GX9+Plan!$E$3,"") ->  | GZ9: =IF(GY9<Plan!$C$5,GY9+Plan!$E$3,"") ->  | HA9: =IF(GZ9<Plan!$C$5,GZ9+Plan!$E$3,"") ->  | HB9: =IF(HA9<Plan!$C$5,HA9+Plan!$E$3,"") ->  | HC9: =IF(HB9<Plan!$C$5,HB9+Plan!$E$3,"") ->  | HD9: =IF(HC9<Plan!$C$5,HC9+Plan!$E$3,"") ->  | HE9: =IF(HD9<Plan!$C$5,HD9+Plan!$E$3,"") ->  | HF9: =IF(HE9<Plan!$C$5,HE9+Plan!$E$3,"") ->  | HG9: =IF(HF9<Plan!$C$5,HF9+Plan!$E$3,"") ->  | HH9: =IF(HG9<Plan!$C$5,HG9+Plan!$E$3,"") ->  | HI9: =IF(HH9<Plan!$C$5,HH9+Plan!$E$3,"") ->  | HJ9: =IF(HI9<Plan!$C$5,HI9+Plan!$E$3,"") ->  | HK9: =IF(HJ9<Plan!$C$5,HJ9+Plan!$E$3,"") ->  | HL9: =IF(HK9<Plan!$C$5,HK9+Plan!$E$3,"") ->  | HM9: =IF(HL9<Plan!$C$5,HL9+Plan!$E$3,"") ->  | HN9: =IF(HM9<Plan!$C$5,HM9+Plan!$E$3,"") ->  | HO9: =IF(HN9<Plan!$C$5,HN9+Plan!$E$3,"") ->  | HP9: =IF(HO9<Plan!$C$5,HO9+Plan!$E$3,"") ->  | HQ9: =IF(HP9<Plan!$C$5,HP9+Plan!$E$3,"") ->  | HR9: =IF(HQ9<Plan!$C$5,HQ9+Plan!$E$3,"") ->  | HS9: =IF(HR9<Plan!$C$5,HR9+Plan!$E$3,"") ->  | HT9: =IF(HS9<Plan!$C$5,HS9+Plan!$E$3,"") ->  | HU9: =IF(HT9<Plan!$C$5,HT9+Plan!$E$3,"") ->  | HV9: =IF(HU9<Plan!$C$5,HU9+Plan!$E$3,"") ->  | HW9: =IF(HV9<Plan!$C$5,HV9+Plan!$E$3,"") ->  | HX9: =IF(HW9<Plan!$C$5,HW9+Plan!$E$3,"") ->  | HY9: =IF(HX9<Plan!$C$5,HX9+Plan!$E$3,"") ->  | HZ9: =IF(HY9<Plan!$C$5,HY9+Plan!$E$3,"") ->  | IA9: =IF(HZ9<Plan!$C$5,HZ9+Plan!$E$3,"") ->  | IB9: =IF(IA9<Plan!$C$5,IA9+Plan!$E$3,"") ->  | IC9: =IF(IB9<Plan!$C$5,IB9+Plan!$E$3,"") ->  | ID9: =IF(IC9<Plan!$C$5,IC9+Plan!$E$3,"") ->  | IE9: =IF(ID9<Plan!$C$5,ID9+Plan!$E$3,"") ->  | IF9: =IF(IE9<Plan!$C$5,IE9+Plan!$E$3,"") ->  | IG9: =IF(IF9<Plan!$C$5,IF9+Plan!$E$3,"") ->  | IH9: =IF(IG9<Plan!$C$5,IG9+Plan!$E$3,"") ->  | II9: =IF(IH9<Plan!$C$5,IH9+Plan!$E$3,"") ->  | IJ9: =IF(II9<Plan!$C$5,II9+Plan!$E$3,"") ->  | IK9: =IF(IJ9<Plan!$C$5,IJ9+Plan!$E$3,"") ->  | IL9: =IF(IK9<Plan!$C$5,IK9+Plan!$E$3,"") ->  | IM9: =IF(IL9<Plan!$C$5,IL9+Plan!$E$3,"") ->  | IN9: =IF(IM9<Plan!$C$5,IM9+Plan!$E$3,"") ->  | IO9: =IF(IN9<Plan!$C$5,IN9+Plan!$E$3,"") ->  | IP9: =IF(IO9<Plan!$C$5,IO9+Plan!$E$3,"") ->  | IQ9: =IF(IP9<Plan!$C$5,IP9+Plan!$E$3,"") ->  | IR9: =IF(IQ9<Plan!$C$5,IQ9+Plan!$E$3,"") ->  | IS9: =IF(IR9<Plan!$C$5,IR9+Plan!$E$3,"") ->  | IT9: =IF(IS9<Plan!$C$5,IS9+Plan!$E$3,"") ->  | IU9: =IF(IT9<Plan!$C$5,IT9+Plan!$E$3,"") -> 
A10: Ref | C10: ACTIVITIES | E10: Date | F10: =C3 -> 2001-10-22 | G10: =IF(G9="","",F10+$E$3) -> 2001-10-23 | H10: 2001-10-24 | I10: 2001-10-25 | J10: 2001-10-26 | K10: 2001-10-27 | L10: 2001-10-28 | M10: 2001-10-29 | N10: 2001-10-30 | O10: 2001-10-31 | P10: 2001-11-01 | Q10: 2001-11-02 | R10: 2001-11-03
F11: =F9 -> 1900-01-01 | G11: 1900-01-02 | H11: 1900-01-03 | I11: 1900-01-04 | J11: 1900-01-05 | K11: 1900-01-06 | L11: 1900-01-07 | M11: 1900-01-08 | N11: 1900-01-09 | O11: 1900-01-10 | P11: 1900-01-11 | Q11: 1900-01-12 | R11: 1900-01-13

Sheet U values
A1: <<<Back
H2: CALCULATION OF THERMAL TRANSMITTANCE (U-VALUE) W/m2oC)
C4: Composite Structures With Air Gap | J4: Composite Structures Without Air Gap
C6: Surface:- | E6: Wall | J6: Surface:- | L6: Wall
E7: (Enter description) | L7: (Enter description)
C8: Material | F8: Thickness | G8: K value | J8: Material | M8: Thickness | N8: K value
C9: (Enter description) | F9: (mm) | G9: (W/moC) | J9: (Enter description) | M9: (mm) | N9: (W/moC)
B10: 1 | C10: Steel Cladding | E10: L1 | F10: 5 | G10: 50 | I10: 1 | J10: Steel Cladding | L10: L1 | M10: 5 | N10: 50
B11: 2 | C11: Fibre Board Slabs | E11: L2 | F11: 100 | G11: 0.057 | I11: 2 | J11: Fibre Board Slabs | L11: L2 | M11: 100 | N11: 0.057
B12: 3 | C12: Air Gap | E12: L3 | F12: 50 | G12: 0.026 | I12: 3 | L12: L3 | M12: 0 | N12: 1
B13: 4 | C13: Plasterboard | E13: L4 | F13: 15 | G13: 0.16 | I13: 4 | J13: Plasterboard | L13: L4 | M13: 15 | N13: 0.16
E14: U Value | F14: Heat Flow | G14: (W/m2oC) | L14: U Value | M14: Heat Flow | N14: (W/m2oC)
F15: Horiz. | G15: =ABS(E38) -> 0.2426411261 | M15: Horiz. | N15: =ABS(L38) -> 0.495482202
F16: Up | G16: =ABS(F38) -> 0.2480581458 | M16: Up | N16: =ABS(M38) -> 0.5029584102
F17: Down | G17: =ABS(G38) -> 0.2438243624 | M17: Down | N17: =ABS(N38) -> 0.4858529425
H19: GO TO 'k' Factors>>>
F21: HEAT FLOW | M21: HEAT FLOW
E22: HORIZ. | F22: UP | G22: DOWN | L22: HORIZ. | M22: UP | N22: DOWN
D23: Rsi | E23: 0.13 | F23: 0.1 | G23: 0.17 | K23: Rsi | L23: 0.13 | M23: 0.1 | N23: 0.17
D24: Rso | E24: 0.04 | F24: 0.04 | G24: 0.04 | K24: Rso | L24: 0.04 | M24: 0.04 | N24: 0.04
D25: Rsi+Rso | E25: 0.17 | F25: 0.14 | G25: 0.21 | K25: Rsi+Rso | L25: 0.17 | M25: 0.14 | N25: 0.21
D26: R air gap | E26: 0.18 | F26: 0.12 | G26: 0.12 | K26: R air gap | L26: 0 | M26: 0 | N26: 0
D27: R total | E27: 0.52 | F27: 0.4 | G27: 0.54 | K27: R total | L27: 0.34 | M27: 0.28 | N27: 0.42
D28: L1 (m) | E28: =(F10/1000) -> 0.005 | F28: =(F10/1000) -> 0.005 | G28: =ABS(F10*0.001) -> 0.005 | K28: L1 (m) | L28: =(M10/1000) -> 0.005 | M28: =(M10/1000) -> 0.005 | N28: =(M10/1000) -> 0.005
D29: K1 | E29: =G10 -> 50 | F29: =G10 -> 50 | G29: =G10 -> 50 | K29: K1 | L29: =N10 -> 50 | M29: =N10 -> 50 | N29: =N10 -> 50
D30: L2 (m) | E30: =(F11/1000) -> 0.1 | F30: =(F11/1000) -> 0.1 | G30: =(F11/1000) -> 0.1 | K30: L2 (m) | L30: =(M11/1000) -> 0.1 | M30: =(M11/1000) -> 0.1 | N30: =(M11/1000) -> 0.1
D31: K2 | E31: =G11 -> 0.057 | F31: =G11 -> 0.057 | G31: =G11 -> 0.057 | K31: K2 | L31: =N11 -> 0.057 | M31: =N11 -> 0.057 | N31: =N11 -> 0.057
D32: L3 (m) | E32: =(F12/1000) -> 0.05 | F32: =(F12/1000) -> 0.05 | G32: =(F12/1000) -> 0.05 | K32: L3 (m) | L32: =(M12/1000) -> 0 | M32: =(M12/1000) -> 0 | N32: =(M12/1000) -> 0
D33: K3 | E33: =G12 -> 0.026 | F33: =G12 -> 0.026 | G33: =G12 -> 0.026 | K33: K3 | L33: =N12 -> 1 | M33: =N12 -> 1 | N33: =N12 -> 1
D34: L4 (m) | E34: =(F13/1000) -> 0.015 | F34: =(F13/1000) -> 0.015 | G34: =(F13/1000) -> 0.015 | K34: L4 (m) | L34: =(M13/1000) -> 0.015 | M34: =(M13/1000) -> 0.015 | N34: =(M13/1000) -> 0.015
D35: K4 | E35: =G13 -> 0.16 | F35: =G13 -> 0.16 | G35: =G13 -> 0.16 | K35: K4 | L35: =N13 -> 0.16 | M35: =N13 -> 0.16 | N35: =N13 -> 0.16
D36: N.B:- Enter 'k' from table below. | K36: N.B:- Enter 'k' from table below.
D37: Where no material is used enter L=0 & K=1. | K37: Where no material is used enter L=0 & K=1.
D38: U-value = | E38: =ABS(1/(E25+E26+(E28/E29)+(E30/E31)+(E32/E33)+(E34/E35))) -> 0.2426411261 | F38: 0.2480581458 | G38: 0.2438243624 | K38: U-value = | L38: =ABS(1/(L25+L26+(L28/L29)+(L30/L31)+(L32/L33)+(L34/L35))) -> 0.495482202 | M38: 0.5029584102 | N38: 0.4858529425
D39: (W/m2oC) | K39: (W/m2oC)
C45: Typical 'k' Factors for Various Materials (W/moC) :- | H45: Back to Top
C47: Walls | J47: Roofs
C48: Brick | E48: 0.84 | J48: Asphalt | L48: 0.9
C49: Dense Plaster | E49: 0.5 | J49: Concrete | L49: 1.4
C50: Lightweight Plaster | E50: 0.16 | J50: Lightw't Concrete | L50: 0.38
C51: Plasterboard | E51: 0.16 | J51: Dense Plaster | L51: 0.5
C52: Exp. Polystyrene | E52: 0.033 | J52: Lightweight Plaster | L52: 0.1
C53: Lightw't Concrete | E53: 0.38 | J53: Concrete | L53: 0.16
C54: Concrete | E54: 1.4 | J54: Phenolic Foam | L54: 0.038
C55: Concrete Block | E55: 0.19 | J55: Fibreboard | L55: 0.057
C56: Asbestos Sheet | E56: 0.36 | J56: Exp. Polystyrene | L56: 0.033
C57: Woodwool Slab | E57: 0.09 | J57: Tiles | L57: 0.84
C58: Glass Fibre | E58: 0.035 | J58: Roofing Felt | L58: 0.19
C59: Timber | E59: 0.14 | J59: Glass Fibre | L59: 0.035
C60: Weatherboarding | E60: 0.14 | J60: Asbestos Sheet | L60: 0.36
C61: Air | E61: 0.026 | J61: Slate | L61: 2
C63: Miscellaneous Materials
C64: Bitumen | E64: 0.85 | J64: Granite | L64: 2.5
C65: Carpet - woollen | E65: 0.055 | J65: Wood Chipboard | L65: 0.15
C66: Carpet Underlay | E66: 0.045 | J66: Woodwool Slab | L66: 0.11
C67: Corkboard | E67: 0.042 | J67: Water | L67: 0.6
C68: Glass Sheet | E68: 1.05 | J68: Seawater | L68: 0.58
C69: Gravel | E69: 0.3 | J69: Carbon Steel | L69: 50
C70: Hardboard | E70: 0.08 | J70: High Alloy Steel | L70: 15
C71: PVC Flooring | E71: 0.35 | J71: Fresh Snow | L71: 0.17
C72: Phenolic Foam | E72: 0.037 | J72: Compacted Snow | L72: 0.43

Sheet Hygro
B1: 1
F3: Airflow | G3: 3.62 | H3: m3/s
C5: PROCESS ON | J5: PROCESS OFF
F6: =IF(J7-C7<0,"Sensible Cooling","Heating") -> Sensible Cooling | G6: =ABS((G3*2/(C13+J13))*(C7-J7)*1.2) -> 42.2635381 | H6: kW
C7: 23 | D7: C (db) | F7: =IF(J12-C12<0,"De-humidification","Humidification") -> De-humidification | G7: =2258*G9 -> 45.9552968 | H7: kW | J7: 14.8 | K7: C (db)
C8: 80 | D8: % rh | F8: Energy Change | G8: =ABS(G3*(J14-C14)/C13) -> 89.22515476 | H8: kW | J8: 95 | K8: % rh
F9: =IF(J12-C12<0,"Water Removed","Water Added") -> Water Removed | G9: =ABS(G3*(J12-C12))/((C13+J13)*500) -> 0.02035221293 | H9: litres/s
G10: =ABS(G9*3600) -> 73.26796656 | H10: kg/h
C12: =ABS(C8*C15*0.01) -> 14.248 | D12: g/kg | G12: Moisture Content | J12: =ABS(J8*J15*0.01) -> 9.5095 | K12: g/kg
C13: =ABS((C7+273)/1013)*(2.87+(4.61*C15*C8/100000)) -> 0.8578107116 | D13: m3/kg | G13: Specific Volume | J13: =ABS((J7+273)/1013)*(2.87+(4.61*J15*J8/100000)) -> 0.8278408738 | K13: m3/kg
C14: =ABS(C16+(C15*C8/100)*2.55) -> 59.4724 | D14: kJ/kg | G14: Specific Enthalpy | J14: =ABS(J16+(J15*J8/100)*2.55) -> 38.329225 | K14: kJ/kg
C15: =VLOOKUP(C7,C34:J79,6)*1000 -> 17.81 | D15: g/kg | G15: Saturation Moisture Content | J15: =VLOOKUP(J7,C34:J79,6)*1000 -> 10.01 | K15: g/kg
C16: =VLOOKUP(C7,C34:J79,7) -> 23.14 | D16: kJ/kg | G16: Specific Enthalpy Dry Air | J16: =VLOOKUP(J7,C34:J79,7) -> 14.08 | K16: kJ/kg
C17: =VLOOKUP(C7,C34:K79,8) -> 28.08 | D17: Pa | G17: Saturation Vapour Pressure | J17: =VLOOKUP(J7,C34:J79,8) -> 15.98 | K17: Pa
G21: HYGROMETRIC DATA (0oC to 45oC)
G28: HYGROMETRIC TABLES
C30: DRY BULB | D30: RELATIVE | E30: MOISTURE | F30: SPECIFIC | G30: SPECIFIC | H30: SATURATED | I30: ENTHALPY | J30: SATURATED
C31: TEMP. | D31: HUMIDITY | E31: CONTENT | F31: VOLUME | G31: ENTHALPY | H31: MOISTURE | I31: OF DRY AIR | J31: VAPOUR
C32: oC. | D32: % | E32: kg/kg | F32: m3/kg | G32: kJ/kg | H32: CONTENT, kg/kg | I32: kJ/kg | J32: PRESS, Pa
C34: 0 | D34: 50 | E34: =ABS(D34*H34*0.01) -> 0.0018945 | F34: =ABS((C34+273)/1013)*(2.87+(4.61*H34*D34/100)) -> 0.7758087711 | G34: =ABS(I34+(H34*D34/100)*2550) -> 4.830975 | H34: 0.003789 | I34: 0 | J34: 6.108
C35: 1 | D35: 50 | E35: 0.0020375 | F35: 0.7788288724 | G35: 6.201625 | H35: 0.004075 | I35: 1.006 | J35: 6.566
C36: 2 | D36: 50 | E36: 0.00219 | F36: 0.7818621644 | G36: 7.5965 | H36: 0.00438 | I36: 2.012 | J36: 7.055
C37: 3 | D37: 50 | E37: 0.002353 | F37: 0.7849100327 | G37: 9.01815 | H37: 0.004706 | I37: 3.018 | J37: 7.575
C38: 4 | D38: 50 | E38: 0.0025265 | F38: 0.7879726206 | G38: 10.466575 | H38: 0.005053 | I38: 4.024 | J38: 8.129
C39: 5 | D39: 50 | E39: 0.002711 | F39: 0.7910507042 | G39: 11.94305 | H39: 0.005422 | I39: 5.03 | J39: 8.719
C40: 6 | D40: 30 | E40: 0.0017448 | F40: 0.7926694416 | G40: 10.48524 | H40: 0.005816 | I40: 6.036 | J40: 9.346
C41: 7 | D41: 50 | E41: 0.0031175 | F41: 0.797259693 | G41: 14.991625 | H41: 0.006235 | I41: 7.042 | J41: 10.013
C42: 8 | D42: 50 | E42: 0.0033405 | F42: 0.8003922183 | G42: 16.566275 | H42: 0.006681 | I42: 8.048 | J42: 10.72
C43: 9 | D43: 50 | E43: 0.0035775 | F43: 0.8035447399 | G43: 18.176625 | H43: 0.007155 | I43: 9.054 | J43: 11.47
C44: 10 | D44: 95 | E44: 0.00727605 | F44: 0.8111575055 | G44: 28.6139275 | H44: 0.007659 | I44: 10.06 | J44: 12.27
C45: 11 | D45: 95 | E45: 0.0077843 | F45: 0.8146806682 | G45: 30.909965 | H45: 0.008194 | I45: 11.06 | J45: 13.12
C46: 12 | D46: 50 | E46: 0.0043815 | F46: 0.8131358675 | G46: 23.242825 | H46: 0.008763 | I46: 12.07 | J46: 14.02
C47: 13 | D47: 95 | E47: 0.00889865 | F47: 0.8218682271 | G47: 35.7715575 | H47: 0.009367 | I47: 13.08 | J47: 14.97
C48: 14 | D48: 95 | E48: 0.0095095 | F48: 0.8255397178 | G48: 38.329225 | H48: 0.01001 | I48: 14.08 | J48: 15.98
C49: 15 | D49: 50 | E49: 0.00535 | F49: 0.8229645489 | G49: 28.7325 | H49: 0.0107 | I49: 15.09 | J49: 17.04
C50: 16 | D50: 50 | E50: 0.005705 | F50: 0.826288958 | G50: 30.64775 | H50: 0.01141 | I50: 16.1 | J50: 18.17
C51: 17 | D51: 50 | E51: 0.006085 | F51: 0.8296495918 | G51: 32.61675 | H51: 0.01217 | I51: 17.1 | J51: 19.36
C52: 18 | D52: 50 | E52: 0.00649 | F52: 0.8330467916 | G52: 34.6595 | H52: 0.01298 | I52: 18.11 | J52: 20.63
C53: 19 | D53: 50 | E53: 0.00692 | F53: 0.8364808987 | G53: 36.756 | H53: 0.01384 | I53: 19.11 | J53: 21.96
C54: 20 | D54: 80 | E54: 0.0118 | F54: 0.8458525311 | G54: 50.2 | H54: 0.01475 | I54: 20.11 | J54: 23.37
C55: 21 | D55: 50 | E55: 0.007855 | F55: 0.8434612001 | G55: 41.16025 | H55: 0.01571 | I55: 21.13 | J55: 24.86
C56: 22 | D56: 50 | E56: 0.008365 | F56: 0.8470147895 | G56: 43.46075 | H56: 0.01673 | I56: 22.13 | J56: 26.43
C57: 23 | D57: 50 | E57: 0.008905 | F57: 0.8506134322 | G57: 45.84775 | H57: 0.01781 | I57: 23.14 | J57: 28.08
C58: 24 | D58: 50 | E58: 0.009475 | F58: 0.8542575378 | G58: 48.30125 | H58: 0.01895 | I58: 24.14 | J58: 29.83
C59: 25 | D59: 60 | E59: 0.012096 | F59: 0.860688295 | G59: 55.9948 | H59: 0.02016 | I59: 25.15 | J59: 31.66
C60: 26 | D60: 50 | E60: 0.010715 | F60: 0.8616973829 | G60: 53.48325 | H60: 0.02143 | I60: 26.16 | J60: 33.6
C61: 27 | D61: 50 | E61: 0.01139 | F61: 0.8655008588 | G61: 56.2045 | H61: 0.02278 | I61: 27.16 | J61: 35.64
C62: 28 | D62: 50 | E62: 0.012105 | F62: 0.8693652705 | G62: 59.03775 | H62: 0.02421 | I62: 28.17 | J62: 37.79
C63: 29 | D63: 50 | E63: 0.01286 | F63: 0.8732911641 | G63: 61.973 | H63: 0.02572 | I63: 29.18 | J63: 40.05
C64: 30 | D64: 50 | E64: 0.013655 | F64: 0.8772790855 | G64: 65.00025 | H64: 0.02731 | I64: 30.18 | J64: 42.42
C65: 31 | D65: 50 | E65: 0.0145 | F65: 0.8813434156 | G65: 68.165 | H65: 0.029 | I65: 31.19 | J65: 44.92
C66: 32 | D66: 50 | E66: 0.015385 | F66: 0.8854709568 | G66: 71.43175 | H66: 0.03077 | I66: 32.2 | J66: 47.54
C67: 33 | D67: 50 | E67: 0.016325 | F67: 0.8896831436 | G67: 74.82875 | H67: 0.03265 | I67: 33.2 | J67: 50.29
C68: 34 | D68: 50 | E68: 0.017315 | F68: 0.8939737414 | G68: 78.36325 | H68: 0.03463 | I68: 34.21 | J68: 53.19
C69: 35 | D69: 75 | E69: 0.0275475 | F69: 0.911228178 | G69: 105.466125 | H69: 0.03673 | I69: 35.22 | J69: 56.22
C70: 36 | D70: 50 | E70: 0.01947 | F70: 0.9028280556 | G70: 85.8685 | H70: 0.03894 | I70: 36.22 | J70: 59.4
C71: 37 | D71: 50 | E71: 0.02064 | F71: 0.9074004186 | G71: 89.862 | H71: 0.04128 | I71: 37.23 | J71: 62.74
C72: 38 | D72: 50 | E72: 0.02187 | F72: 0.9120683492 | G72: 94.0085 | H72: 0.04374 | I72: 38.24 | J72: 66.24
C73: 39 | D73: 50 | E73: 0.023175 | F73: 0.9168539645 | G73: 98.33625 | H73: 0.04635 | I73: 39.24 | J73: 69.91
C74: 40 | D74: 50 | E74: 0.02455 | F74: 0.9217511663 | G74: 102.8525 | H74: 0.0491 | I74: 40.25 | J74: 73.75
C75: 41 | D75: 50 | E75: 0.026 | F75: 0.9267680553 | G75: 107.56 | H75: 0.052 | I75: 41.26 | J75: 77.78
C76: 42 | D76: 50 | E76: 0.0275 | F76: 0.9318698174 | G76: 112.385 | H76: 0.055 | I76: 42.26 | J76: 81.99
C77: 43 | D77: 50 | E77: 0.02915 | F77: 0.9372009418 | G77: 117.6025 | H77: 0.0583 | I77: 43.27 | J77: 86.4
C78: 44 | D78: 50 | E78: 0.030865 | F78: 0.9426408539 | G78: 122.98575 | H78: 0.06173 | I78: 44.28 | J78: 91
C79: 45 | D79: 50 | E79: 0.03267 | F79: 0.9482266205 | G79: 128.5885 | H79: 0.06534 | I79: 45.28 | J79: 95.82

Sheet Process
A1: Back
M2: =IF(G30>0,"Water Added","") ->  | N2: =S31 -> 
M3: =IF(G30>0,G30,"") ->  | Z3: HYGROMETRIC TABLES
C4: Energy Change | D4: =ABS(G31)+ABS(G32) -> 85.05973999 | E4: kW | M4: =IF(G30>0,"kg/hr","") -> 
G5: m3/s | H5: =SUM(H14:H15) -> -85.05973999 | W5: Dry Bulb | Y5: Moisture | Z5: Specific | AA5: Specific | AB5: Saturated | AC5: Enthalpy | AD5: SATURATED
G6: 5.25 | H6: kW Total | W6: Temp. | X6: R.H. | Y6: Content | Z6: Volume | AA6: Enthalpy | AB6: Moisture | AC6: of dry air | AD6: VAPOUR
B7: Inlet Condition | E7: =IF(G31>0,"Heating","") ->  | G7: Fan | J7: Cooling | O7: =IF(G30>0,"Humidification","") ->  | R7: Outlet Condition | W7: oC. | X7: % | Y7: kg/kg | Z7: m3/kg | AA7: kJ/kg | AB7: Content kg | AC7: kJ/kg | AD7: PRESS, Pa
O8: =S31 -> 
W9: 0 | X9: 50 | Y9: =ABS(X9*AB9*0.01) -> 0.0018945 | Z9: =ABS((W9+273)/1013)*(2.87+(4.61*AB9*X9/100)) -> 0.7758087711 | AA9: =ABS(AC9+(AB9*X9/100)*2550) -> 4.830975 | AB9: 0.003789 | AC9: 0 | AD9: 6.108
B10: 20 | C10: C (db) | R10: 14 | S10: C (db) | W10: 1 | X10: 50 | Y10: 0.0020375 | Z10: 0.7788288724 | AA10: 6.201625 | AB10: 0.004075 | AC10: 1.006 | AD10: 6.566
B11: 84 | C11: % rh | R11: 95 | S11: % rh | W11: 2 | X11: 50 | Y11: 0.00219 | Z11: 0.7818621644 | AA11: 7.5965 | AB11: 0.00438 | AC11: 2.012 | AD11: 7.055
W12: 3 | X12: 50 | Y12: 0.002353 | Z12: 0.7849100327 | AA12: 9.01815 | AB12: 0.004706 | AC12: 3.018 | AD12: 7.575
D13: =IF(G31>0,G31,"") ->  | H13: =IF(H5<0,"kW","") -> kW | M13: =IF(G30>0,G32,"") ->  | W13: 4 | X13: 50 | Y13: 0.0025265 | Z13: 0.7879726206 | AA13: 10.466575 | AB13: 0.005053 | AC13: 4.024 | AD13: 8.129
E14: =IF(G31>0,"kW","") ->  | H14: =IF(G31<0,G31,"") -> -38.34764011 | L14: =IF(G31<0,"Sensible Cooling","") -> Sensible Cooling | O14: =IF(G29<=0,"","kW") ->  | W14: 5 | X14: 50 | Y14: 0.002711 | Z14: 0.7910507042 | AA14: 11.94305 | AB14: 0.005422 | AC14: 5.03 | AD14: 8.719
B15: =ABS(B11*B18*0.01) -> 0.01239 | C15: kg/kg | D15: Moisture Content | H15: =IF(G32<0,G32,"0") -> -46.71209987 | L15: =IF(G32<=0,"Latent Cooling","") -> Latent Cooling | Q15: =ABS(R11*Q18*0.01) -> 0.0095095 | R15: kg/kg | W15: 6 | X15: 30 | Y15: 0.0017448 | Z15: 0.7926694416 | AA15: 10.48524 | AB15: 0.005816 | AC15: 6.036 | AD15: 9.346
B16: =ABS((B10+273)/1013)*(2.87+(4.61*B18*B11/100)) -> 0.8466392346 | C16: m3/kg | D16: Specific Volume | Q16: =ABS((R10+273)/1013)*(2.87+(4.61*Q18*R11/100)) -> 0.8255397178 | R16: m3/kg | W16: 7 | X16: 50 | Y16: 0.0031175 | Z16: 0.797259693 | AA16: 14.991625 | AB16: 0.006235 | AC16: 7.042 | AD16: 10.013
B17: =ABS(B19+(B18*B11/100)*2550) -> 51.7045 | C17: kJ/kg | D17: Specific Enthalpy | Q17: =ABS(Q19+(Q18*R11/100)*2550) -> 38.329225 | R17: kJ/kg | W17: 8 | X17: 50 | Y17: 0.0033405 | Z17: 0.8003922183 | AA17: 16.566275 | AB17: 0.006681 | AC17: 8.048 | AD17: 10.72
B18: =VLOOKUP(B10,W9:AD54,6) -> 0.01475 | C18: kg | D18: Specific Moisture Conteny | I18: =S31 ->  | L18: =IF(G30<0,G30,"") -> -58.8773104 | M18: =IF(G30<0,"kg/h","") -> kg/h | Q18: =VLOOKUP(R10,W9:AD54,6) -> 0.01001 | R18: kg | W18: 9 | X18: 50 | Y18: 0.0035775 | Z18: 0.8035447399 | AA18: 18.176625 | AB18: 0.007155 | AC18: 9.054 | AD18: 11.47
B19: =VLOOKUP(B10,W9:AD54,7) -> 20.11 | C19: kJ/kg | D19: Enthalpy Dry air | L19: =IF(G30<0,"Water Removed","") -> Water Removed | Q19: =VLOOKUP(R10,W9:AD54,7) -> 14.08 | R19: kJ/kg | W19: 10 | X19: 50 | Y19: 0.0038295 | Z19: 0.806718737 | AA19: 19.825225 | AB19: 0.007659 | AC19: 10.06 | AD19: 12.27
B20: =VLOOKUP(B10,W9:AD54,8) -> 23.37 | C20: Pa | D20: Saturated Vapour Pressure | Q20: =VLOOKUP(R10,W9:AD54,8) -> 15.98 | R20: Pa | W20: 11 | X20: 50 | Y20: 0.004097 | Z20: 0.8099150605 | AA20: 21.50735 | AB20: 0.008194 | AC20: 11.06 | AD20: 13.12
W21: 12 | X21: 50 | Y21: 0.0043815 | Z21: 0.8131358675 | AA21: 23.242825 | AB21: 0.008763 | AC21: 12.07 | AD21: 14.02
W22: 13 | X22: 50 | Y22: 0.0046835 | Z22: 0.8163820409 | AA22: 25.022925 | AB22: 0.009367 | AC22: 13.08 | AD22: 14.97
W23: 14 | X23: 50 | Y23: 0.005005 | Z23: 0.8196564317 | AA23: 26.84275 | AB23: 0.01001 | AC23: 14.08 | AD23: 15.98
W24: 15 | X24: 50 | Y24: 0.00535 | Z24: 0.8229645489 | AA24: 28.7325 | AB24: 0.0107 | AC24: 15.09 | AD24: 17.04
W25: 16 | X25: 50 | Y25: 0.005705 | Z25: 0.826288958 | AA25: 30.64775 | AB25: 0.01141 | AC25: 16.1 | AD25: 18.17
W26: 17 | X26: 50 | Y26: 0.006085 | Z26: 0.8296495918 | AA26: 32.61675 | AB26: 0.01217 | AC26: 17.1 | AD26: 19.36
F27: Moisture content At inlet | G27: =(G6/B16)*B15 -> 0.07683024521 | H27: kg | W27: 18 | X27: 50 | Y27: 0.00649 | Z27: 0.8330467916 | AA27: 34.6595 | AB27: 0.01298 | AC27: 18.11 | AD27: 20.63
F28: Moisture content At outlet | G28: =(G6/Q16)*Q15 -> 0.06047543676 | H28: kg | W28: 19 | X28: 50 | Y28: 0.00692 | Z28: 0.8364808987 | AA28: 36.756 | AB28: 0.01384 | AC28: 19.11 | AD28: 21.96
F29: Moisture change | G29: =G28-G27 -> -0.01635480845 | H29: kg | W29: 20 | X29: 78 | Y29: 0.011505 | Z29: 0.8454591793 | AA29: 49.44775 | AB29: 0.01475 | AC29: 20.11 | AD29: 23.37
G30: =G29*3600 -> -58.8773104 | H30: kg/h | W30: 21 | X30: 50 | Y30: 0.007855 | Z30: 0.8434612001 | AA30: 41.16025 | AB30: 0.01571 | AC30: 21.13 | AD30: 24.86
F31: Sensible change | G31: =(G6/Q16)*(Q19-B19) -> -38.34764011 | H31: kW | W31: 22 | X31: 50 | Y31: 0.008365 | Z31: 0.8470147895 | AA31: 43.46075 | AB31: 0.01673 | AC31: 22.13 | AD31: 26.43
F32: Latent change | G32: =($G$6*(($Q$17-$Q$19)-($B$17-$B$19))/(($Q$16))) -> -46.71209987 | H32: kW | M32: =IF(Q32<0,ABS(Q32),"") ->  | W32: 23 | X32: 50 | Y32: 0.008905 | Z32: 0.8506134322 | AA32: 45.84775 | AB32: 0.01781 | AC32: 23.14 | AD32: 28.08
W33: 24 | X33: 50 | Y33: 0.009475 | Z33: 0.8542575378 | AA33: 48.30125 | AB33: 0.01895 | AC33: 24.14 | AD33: 29.83
F34: Total change | G34: =G32+G31 -> -85.05973999 | H34: kW | W34: 25 | X34: 50 | Y34: 0.01008 | Z34: 0.8579542965 | AA34: 50.854 | AB34: 0.02016 | AC34: 25.15 | AD34: 31.66
W35: 26 | X35: 50 | Y35: 0.010715 | Z35: 0.8616973829 | AA35: 53.48325 | AB35: 0.02143 | AC35: 26.16 | AD35: 33.6
W36: 27 | X36: 50 | Y36: 0.01139 | Z36: 0.8655008588 | AA36: 56.2045 | AB36: 0.02278 | AC36: 27.16 | AD36: 35.64
W37: 28 | X37: 50 | Y37: 0.012105 | Z37: 0.8693652705 | AA37: 59.03775 | AB37: 0.02421 | AC37: 28.17 | AD37: 37.79
W38: 29 | X38: 50 | Y38: 0.01286 | Z38: 0.8732911641 | AA38: 61.973 | AB38: 0.02572 | AC38: 29.18 | AD38: 40.05
W39: 30 | X39: 50 | Y39: 0.013655 | Z39: 0.8772790855 | AA39: 65.00025 | AB39: 0.02731 | AC39: 30.18 | AD39: 42.42
W40: 31 | X40: 50 | Y40: 0.0145 | Z40: 0.8813434156 | AA40: 68.165 | AB40: 0.029 | AC40: 31.19 | AD40: 44.92
W41: 32 | X41: 50 | Y41: 0.015385 | Z41: 0.8854709568 | AA41: 71.43175 | AB41: 0.03077 | AC41: 32.2 | AD41: 47.54
W42: 33 | X42: 50 | Y42: 0.016325 | Z42: 0.8896831436 | AA42: 74.82875 | AB42: 0.03265 | AC42: 33.2 | AD42: 50.29
W43: 34 | X43: 50 | Y43: 0.017315 | Z43: 0.8939737414 | AA43: 78.36325 | AB43: 0.03463 | AC43: 34.21 | AD43: 53.19
W44: 35 | X44: 50 | Y44: 0.018365 | Z44: 0.8983574494 | AA44: 82.05075 | AB44: 0.03673 | AC44: 35.22 | AD44: 56.22
W45: 36 | X45: 50 | Y45: 0.01947 | Z45: 0.9028280556 | AA45: 85.8685 | AB45: 0.03894 | AC45: 36.22 | AD45: 59.4
W46: 37 | X46: 50 | Y46: 0.02064 | Z46: 0.9074004186 | AA46: 89.862 | AB46: 0.04128 | AC46: 37.23 | AD46: 62.74
W47: 38 | X47: 50 | Y47: 0.02187 | Z47: 0.9120683492 | AA47: 94.0085 | AB47: 0.04374 | AC47: 38.24 | AD47: 66.24
W48: 39 | X48: 50 | Y48: 0.023175 | Z48: 0.9168539645 | AA48: 98.33625 | AB48: 0.04635 | AC48: 39.24 | AD48: 69.91
W49: 40 | X49: 50 | Y49: 0.02455 | Z49: 0.9217511663 | AA49: 102.8525 | AB49: 0.0491 | AC49: 40.25 | AD49: 73.75
W50: 41 | X50: 50 | Y50: 0.026 | Z50: 0.9267680553 | AA50: 107.56 | AB50: 0.052 | AC50: 41.26 | AD50: 77.78
W51: 42 | X51: 50 | Y51: 0.0275 | Z51: 0.9318698174 | AA51: 112.385 | AB51: 0.055 | AC51: 42.26 | AD51: 81.99
W52: 43 | X52: 50 | Y52: 0.02915 | Z52: 0.9372009418 | AA52: 117.6025 | AB52: 0.0583 | AC52: 43.27 | AD52: 86.4
W53: 44 | X53: 50 | Y53: 0.030865 | Z53: 0.9426408539 | AA53: 122.98575 | AB53: 0.06173 | AC53: 44.28 | AD53: 91
W54: 45 | X54: 50 | Y54: 0.03267 | Z54: 0.9482266205 | AA54: 128.5885 | AB54: 0.06534 | AC54: 45.28 | AD54: 95.82

Sheet Process 2
A1: Specific Enthalpy | C1: Volume | D1: Sp. Vol | E1: Air on | G1: Air off
A2: kJ/kg | B2: kjJ/kg | C2: m3/s | D2: m3/kg | E2: db | F2: % | G2: db | H2: % | I2: kW
A3: 20 | B3: 54 | C3: 1 | D3: 0.883 | E3: 10 | F3: 0.5 | G3: 35 | H3: 0.2 | I3: =(C3/D3)*(A3-B3) -> -38.50509626 | J3: 1
A5: 20 | B5: 30 | C5: 1 | D5: 0.847 | E5: 10 | F5: 0.5 | G5: 25 | H5: 0.1 | I5: =(C5/D5)*(A5-B5) -> -11.80637544 | J5: 2
A7: 116 | B7: 76 | C7: 1 | D7: 0.871 | E7: 40 | F7: 0.6 | G7: 25 | H7: 1 | I7: =(C7/D7)*(A7-B7) -> 45.92422503 | J7: 3
A9: 79 | B9: 39 | C9: 1 | D9: 0.839 | E9: 45 | F9: 0.2 | G9: 20 | H9: 0.5 | I9: =(C9/D9)*(A9-B9) -> 47.67580453 | J9: 4
A11: 79 | B11: 65 | C11: 1 | D11: 0.877 | E11: 45 | F11: 0.2 | G11: 30 | H11: 0.5 | I11: =(C11/D11)*(A11-B11) -> 15.96351197 | J11: 5
A13: 56 | B13: 44 | C13: 1 | D13: 0.866 | E13: 42 | F13: 0.1 | G13: 30 | H13: 0.2 | I13: =(C13/D13)*(A13-B13) -> 13.85681293 | J13: 6
A14: 44 | B14: 56 | C14: 1 | D14: 0.866 | E14: 30 | F14: 0.2 | G14: 42 | H14: 0.1 | I14: -13.85681293

Sheet Sound
A1: <<<Back | G1: REV. NO. | H1: A | I1: B | J1: C | K1: D | L1: Sheet No | O1: of
D2: SOUND ATTENUATION | G2: CALC. BY | L2: Job | M2: No.
A3: JOB: | D3: SYSTEM: | G3: CHECKED | L3: Doc. | M3: No.
C5: CALCULATIONS | G5: DATA | K5: OCTAVE BAND MID FREQUENCY, Hz | P5: NO.
G6: SOURCE | H6: 63 | I6: 125 | J6: 250 | K6: 500 | L6: 1000 | M6: 2000 | N6: 4000 | O6: 8000 | P6: OFF
A7: 1 | B7: MAXIMUM SOUND PRESSURE LEVEL = | F7: NR 40 | G7: TABLE 1 | H7: 67 | I7: 57 | J7: 49 | K7: 44 | L7: 40 | M7: 37 | N7: 35 | O7: 33
A8: 2 | B8: ROOM AND TERMINAL EFFECT | G8: FIG.1 | H8: 3 | I8: =ABS(H8) -> 3 | J8: 3 | K8: 3 | L8: 3 | M8: 3 | N8: 3 | O8: 3
A9: 3 | B9: ALLOWANCE FOR END REFLECTION | G9: TABLE 2 | H9: 9 | I9: 5 | J9: 1 | K9: 0 | L9: 0 | M9: 0 | N9: 0 | O9: 0
A10: 4 | B10: DUCTWORK ATTENUATION-TERMINAL TO CHECKPOINT | G10: TABLE 3 | H10: 0.3 | I10: 0.15 | J10: 0.03 | K10: 0 | L10: 0 | M10: 0 | N10: 0 | O10: 0 | P10: 25
B11: (Duct length given in metres against Table 3 data) | H11: =ABS(H10*P10) -> 7.5 | I11: =ABS(I10*P10) -> 3.75 | J11: =ABS(J10*P10) -> 0.75 | K11: =ABS(K10*P10) -> 0 | L11: =ABS(L10*P10) -> 0 | M11: =ABS(M10*P10) -> 0 | N11: =ABS(N10*P10) -> 0 | O11: =ABS(O10*P10) -> 0
A12: 5 | B12: ELBOW ATTENUATION-TERMINAL TO CHECKPOINT | G12: TABLE 4 | H12: 0.3 | I12: 0.15 | J12: 0.03 | K12: 0 | L12: 0 | M12: 0 | N12: 0 | O12: 0 | P12: 6
B13: (No. of bends indicated against Table 4 data) | H13: =ABS(H12*P12) -> 1.8 | I13: =ABS(I12*P12) -> 0.9 | J13: =ABS(J12*P12) -> 0.18 | K13: =ABS(K12*P12) -> 0 | L13: =ABS(L12*P12) -> 0 | M13: =ABS(M12*P12) -> 0 | N13: =ABS(N12*P12) -> 0 | O13: =ABS(O12*P12) -> 0
A14: 6 | B14: PWL SPLIT-BRANCH TO TERMINALS | G14: TABLE 5 | H14: 6 | I14: =ABS(H14) -> 6 | J14: 6 | K14: 6 | L14: 6 | M14: 6 | N14: 6 | O14: 6
A15: 7 | B15: PWL SPLIT-MAIN DUCT TO BRANCH | G15: TABLE 6 | H15: 5 | I15: =ABS(H15) -> 5 | J15: 5 | K15: 5 | L15: 5 | M15: 5 | N15: 5 | O15: 5
A16: 8 | B16: CALCULATED PWL AT CHECKPOINT | G16: TOTAL 1 to 7 | H16: =SUM(H7,H8,H9,H11,H13,H14,H15) -> 99.3 | I16: 80.65 | J16: 64.93 | K16: 58 | L16: 54 | M16: 51 | N16: 49 | O16: 47
A17: 9 | B17: DEDUCT 3dB SAFETY FACTOR | H17: -3 | I17: -3 | J17: -3 | K17: -3 | L17: -3 | M17: -3 | N17: -3 | O17: -3
A18: 10 | B18: PERMISSIBLE PWL AT CHECKPOINT | H18: =SUM(H16:H17) -> 96.3 | I18: 77.65 | J18: 61.93 | K18: 55 | L18: 51 | M18: 48 | N18: 46 | O18: 44
A19: 11 | B19: POWER LEVEL OF NOISE SOURCE AT CHECKPOINT | G19: Manfr's Data | H19: 91 | I19: 83 | J19: 77 | K19: 73 | L19: 70 | M19: 68 | N19: 66 | O19: 64
A20: 12 | B20: DYNAMIC INSERTION LOSS REQUIRED | G20: 11 minus 10 | H20: =SUM(H19-H18) -> -5.3 | I20: 5.35 | J20: 15.07 | K20: 18 | L20: 19 | M20: 20 | N20: 20 | O20: 20
D22: DESIGN DATA | G22: TABLE 1 | K22: NOISE LEVELS FOR SPACES, dB. | P22: dBA
A23: LOCATION: | G23: NR20 | H23: 51 | I23: 39 | J23: 31 | K23: 24 | L23: 20 | M23: 17 | N23: 14 | O23: 13 | P23: 30
G24: NR25 | H24: 55 | I24: 44 | J24: 35 | K24: 29 | L24: 25 | M24: 22 | N24: 20 | O24: 18 | P24: 35
A25: ROOM DIMENSIONS: | E25: Volume, m3 = | F25: =ABS(B27*C27*D27) -> 240 | G25: NR30 | H25: 59 | I25: 48 | J25: 40 | K25: 34 | L25: 30 | M25: 27 | N25: 25 | O25: 23 | P25: 39
B26: Length, m | C26: Width, m | D26: Height, m | E26: Floor Area, m2 = | F26: =ABS(B27*C27) -> 60 | G26: NR35 | H26: 63 | I26: 52 | J26: 45 | K26: 39 | L26: 35 | M26: 32 | N26: 30 | O26: 28 | P26: 44
B27: 12 | C27: 5 | D27: 4 | E27: Surface Area, m2 = | F27: =ABS(((B27+C27)*2)*D27)+2*(B27*C27) -> 256 | G27: NR40 | H27: 67 | I27: 57 | J27: 49 | K27: 44 | L27: 40 | M27: 37 | N27: 35 | O27: 33 | P27: 48
G28: NR45 | H28: 71 | I28: 61 | J28: 54 | K28: 48 | L28: 45 | M28: 42 | N28: 40 | O28: 38 | P28: 53
G29: NR50 | H29: 75 | I29: 65 | J29: 59 | K29: 53 | L29: 50 | M29: 47 | N29: 45 | O29: 43 | P29: 58
B30: MAX. PERMISSIBLE NOISE LEVEL (NR) = | F30: 40 | G30: NR55 | H30: 79 | I30: 70 | J30: 63 | K30: 58 | L30: 55 | M30: 52 | N30: 50 | O30: 49 | P30: 62
G31: NR60 | H31: 83 | I31: 74 | J31: 68 | K31: 63 | L31: 60 | M31: 57 | N31: 55 | O31: 54 | P31: 67
B32: NO.of TERMINALS = | D32: 8 | G32: NR65 | H32: 87 | I32: 78 | J32: 72 | K32: 68 | L32: 65 | M32: 62 | N32: 61 | O32: 59 | P32: 72
G33: NR70 | H33: 91 | I33: 83 | J33: 77 | K33: 73 | L33: 70 | M33: 68 | N33: 66 | O33: 64 | P33: 77
C34: ROOM CHARACTERISTIC
B35: SOFT | C35: AVER'GE | D35: HARD | G35: TABLE 2 | K35: ATTENUATION DUE TO END
C36: X | G36: DUCT EQUIV | K36: REFLECTION AT DUCT OPENINGS,dB
G37: DIA, mm. | K37: (Select nearest applicable line)
G38: 125 | H38: 13 | I38: 9 | J38: 5 | K38: 1 | L38: 0 | M38: 0 | N38: 0 | O38: 0
G39: 250 | H39: 9 | I39: 5 | J39: 1 | K39: 0 | L39: 0 | M39: 0 | N39: 0 | O39: 0
G40: 500 | H40: 5 | I40: 1 | J40: 0 | K40: 0 | L40: 0 | M40: 0 | N40: 0 | O40: 0
G41: 1000 | H41: 1 | I41: 0 | J41: 0 | K41: 0 | L41: 0 | M41: 0 | N41: 0 | O41: 0
G43: TABLE 3 | K43: ATTENUATION OF UNLINED
G44: DUCT SIZE | K44: SHEET METAL DUCTS, dB / metre.
G45: 150 X 150 | H45: 0.6 | I45: 0.45 | J45: 0.3 | K45: 0 | L45: 0 | M45: 0 | N45: 0 | O45: 0
G46: 600 X 600 | H46: 0.6 | I46: 0.3 | J46: 0.15 | K46: 0 | L46: 0 | M46: 0 | N46: 0 | O46: 0
G47: 850 X 850 | H47: 0.3 | I47: 0.15 | J47: 0.03 | K47: 0 | L47: 0 | M47: 0 | N47: 0 | O47: 0
G48: <300 Dia. | H48: 0.1 | I48: 0.1 | J48: 0 | K48: 0 | L48: 0 | M48: 0 | N48: 0 | O48: 0
G49: >300 Dia. | H49: 0 | I49: 0 | J49: 0 | K49: 0 | L49: 0 | M49: 0 | N49: 0 | O49: 0
G51: TABLE 4 | K51: ATTENUATION OF UNLINED
G52: DUCT DIA. | K52: SHEET METAL BENDS, dB.
G53: OR WIDTH. | K53: (Select nearest applicable line)
G54: 250 Max. | H54: 0 | K54: 1.2.4 | L54: 2.5.8 | M54: 3.4.5 | N54: 3 | O54: 3
G55: 500 Max. | H55: 0 | J55: 1.2.4 | K55: 2.5.8 | L55: 3.4.5 | M55: 3 | N55: 3 | O55: 3
G56: 1000 Max. | H56: 0 | I56: 1.2.4 | J56: 2.5.8 | K56: 3.4.5 | L56: 3 | M56: 3 | N56: 3 | O56: 3
G57: 2000 Max. | H57: 1.2.4 | I57: 2.5.8 | J57: 3.4.5 | K57: 3 | L57: 3 | M57: 3 | N57: 3 | O57: 3
G58: Where 3-values are shown, use 1st for round bends,
G59: 2nd for sq. bends with vanes, 3rd for bends with no vanes.
G61: TABLE 5 | K61: PWL SPLIT-BRANCH TO TERMINALS
G62: No. Terminals | H62: 1 | I62: 2 | J62: 3 | K62: 4 | L62: 8 | M62: 10 | N62: 20 | O62: 40 | P62: 100
G63: dB Allowance | H63: 0 | I63: 3 | J63: 5 | K63: 6 | L63: 9 | M63: 10 | N63: 13 | O63: 16 | P63: 20
G65: TABLE 6 | K65: PWL SPLIT-MAIN DUCT TO BRANCH
G66: dB to add to | K66: AREA OF BRANCH EXPRESSED
G67: branch PWL | K67: AS % OF MAIN BRANCH AREA
G68: to give main | H68: 0.2 | I68: 0.5 | J68: 1 | K68: 2 | L68: 5 | M68: 10 | N68: 20 | O68: 50
G69: duct PWL. | H69: 27 | I69: 23 | J69: 20 | K69: 17 | L69: 13 | M69: 10 | N69: 7 | O69: 3

Sheet Pipes
A1: Back
C2: BLACK MILD STEEL PIPE SIZES | I2: GALVANISED PIPES
E3: FOR VARIOUS kW DUTIES. | H3: FOR HWS AND CWS SYSTEMS
H5: Max. | I5: Equivalent | J5: Equivalent | K5: HWS
A6: Diameter, | C6: Max. Water | E6: kW Rated Output | H6: Simultaneous | I6: Flow Rate | J6: Pressure | K6: Return Dia.
A7: mm. | C7: Flow Rate, l/s. | E7: T=5oC. | F7: T=10oC. | G7: T=15oC. | H7: Demand Units | I7: l/s. | J7: Drop, Pa. | K7: mm
A9: 10 | C9: 0.03 | E9: 0.6 | F9: 1.3 | G9: 2
A10: 15 | C10: 0.07 | E10: 1.5 | F10: 3 | G10: 4.5 | H10: 10 | I10: 0.06 | J10: 200 | K10: 15
A11: 20 | C11: 0.16 | E11: 3.4 | F11: 6.7 | G11: 10 | H11: 25 | I11: 0.15 | J11: 220 | K11: 15
A13: 25 | C13: 0.35 | E13: 7 | F13: 15 | G13: 22 | H13: 50 | I13: 0.3 | J13: 250 | K13: 20
A14: 32 | C14: 0.71 | E14: 15 | F14: 30 | G14: 45 | H14: 150 | I14: 0.6 | J14: 210 | K14: 20
A15: 40 | C15: 1 | E15: 20 | F15: 40 | G15: 60 | H15: 250 | I15: 0.9 | J15: 200 | K15: 25
A17: 50 | C17: 2 | E17: 40 | F17: 80 | G17: 120 | H17: 500 | I17: 1.5 | J17: 150 | K17: 32
A18: 65 | C18: 4 | E18: 85 | F18: 170 | G18: 250 | H18: 1500 | I18: 3.6 | J18: 210 | K18: 32
A19: 80 | C19: 6 | E19: 125 | F19: 250 | G19: 375 | H19: 2500 | I19: 5.5 | J19: 200 | K19: 40
A20: 100 | C20: 13 | E20: 275 | F20: 550 | G20: 800 | H20: 5000 | I20: 10 | J20: 160 | K20: 50
A22: 150 | C22: 36 | E22: 750 | F22: 1500 | G22: 2250 | H22: TYPICAL PRACTICAL DEMAND UNITS
A23: 200 | C23: 90 | E23: 1850 | F23: 3700 | G23: 5500 | H23: Basin or Bidet | I23: ( Hot & Cold) | J23: 3 | K23: 1.5 ea
H24: Sink | I24: ( Hot & Cold) | J24: 15 | K24: 7.5 each
C25: NOTE | H25: Bath | I25: ( Hot & Cold) | J25: 20 | K25: 10 each
C26: 1) For LPHW heating, typical | F26: T= 82oC - 71oC = 11oC. | H26: Shower | I26: ( Hot & Cold) | J26: 8 | K26: 4 ea
C27: 2) For fan coil unit cooling, typical T= 12oC - 7oC = 5oC. | H27: WC | I27: (Cold only) | J27: 8 | K27: only

Sheet PFEER
G1: JOB NO.
A2: MODULE INTEGRITY | G2: LOCATION
A3: TEST RESULTS | G3: DATE
G4: TEST BY
G5: WITNESS
A7: Module / Area Tested: | E7: Control Room
A10: The following data is used to calculate the actual leakage rate for the module
A13: Allowable Leakage Rate = | E13: 0.2 | F13: air changes per hour (ac/h)
E16: Volume of Module = | H16: 548 | I16: m3
A19: Maximum Permissible Supply (Leakage) Air Volume = | H19: =ABS(E13*H16) -> 109.6 | I19: m3/h
A20: (Based on | C20: =TEXT( ,E13) -> 0.20 | D20: ac/h) | G20: (i.e. | H20: =ABS((E13*H16)/3600) -> 0.03044444444 | I20: m3/s)
E26: MEASURED RESULTS
A29: Max Permitted Leakage Rate for | E29: =REPT(E7,1) -> Control Room | G29: = | H29: =ABS(E13*H16) -> 109.6 | I29: m3/h
B32: Leakage Rate During Pressurisation | G32: = | H32: 110.4 | I32: m3/h
B35: Leakage Rate During Depressurisation | G35: = | H35: 108.2 | I35: m3/h
B38: Average Measured Air Leakage Rate | G38: = | H38: =ABS((H32+H35)/2) -> 109.3 | I38: m3/h
C41: Final Test Result | F41: =IF(H38>H29,"FAIL",IF(H38<H29,"PASS",IF(H38=H29,"PASS"))) -> PASS
A44: Comments:

Sheet Mod Temp
A1: <<Back
A3: Accommodation Module
B4: length | C4: 15 | D4: m
B5: breadth | C5: 15 | D5: m
B6: height | C6: 30.25 | D6: m
B7: Surface Area (A) | C7: =2*(C4*C5)+2*(C4*C6)+2*(C5*C6) -> 2265 | D7: m2
B8: Enclosed Volume | C8: =C4*C5*C6 -> 6806.25 | D8: m3
B9: U | C9: 0.3 | D9: W/m2oC
A10: (initial) | B10: Ti | C10: 24 | D10: oC
B11: To | C11: 35 | D11: oC
B12: Gains | C12: 24 | D12: kW (kJ/s)
A16: Temp @ | B16: 60 mins | C16: =E99 -> 36.01404296
B28: 826 | C28: Joules will raise | E28: 1 | F28: m3 air by | G28: 1 | H28: deg C
B29: =B28 -> 826 | C29: Joules will raise | E29: =C8 -> 6806.25 | F29: m3 air by | G29: =(E28/E29) -> 0.0001469237833 | H29: deg C
B30: =C12 -> 24 | C30: (Available Heat input Joules / second)
B31: =B29/B30 -> 34.41666667 | C31: (Seconds to raise air temp. by 1deg C.)
B32: =B31/60 -> 0.5736111111 | C32: (Minutes to raise air temp. by 1deg C.)
B36: Elapsed | C36: Module heat | D36: Surplus | E36: Module
B37: Time | C37: Loss | D37: Energy | E37: Temp.
B38: Minutes | C38: kJ | D38: kJ | E38: oC
B39: 0 | E39: =C10 -> 24
B40: 1 | C40: =($C$9*$C$7*($C$10-$C$11))*0.06 -> -448.47 | D40: =($C$12*60)-C40 -> 1888.47 | E40: =$C$10+(D40/($C$8*1.2)) -> 24.23121763
B41: 2 | C41: =($C$9*$C$7*(E40-$C$11))*0.06 -> -439.0432572 | D41: 1879.043257 | E41: =E40+(D41/($C$8*1.2)) -> 24.46128108
B42: 3 | C42: -429.6635702 | D42: 1869.66357 | E42: 24.69019612
B43: 4 | C43: -420.3307041 | D43: 1860.330704 | E43: 24.91796848
B44: 5 | C44: -411.0444252 | D44: 1851.044425 | E44: 25.14460385
B45: 6 | C45: -401.804501 | D45: 1841.804501 | E45: 25.37010792
B46: 7 | C46: -392.6107 | D46: 1832.6107 | E46: 25.59448634
B47: 8 | C47: -383.462792 | D47: 1823.462792 | E47: 25.81774471
B48: 9 | C48: -374.360548 | D48: 1814.360548 | E48: 26.03988864
B49: 10 | C49: -365.30374 | D49: 1805.30374 | E49: 26.26092369
B50: 11 | C50: -356.2921412 | D50: 1796.292141 | E50: 26.48085539
B51: 12 | C51: -347.3255258 | D51: 1787.325526 | E51: 26.69968924
B52: 13 | C52: -338.4036695 | D52: 1778.40367 | E52: 26.91743074
B53: 14 | C53: -329.5263487 | D53: 1769.526349 | E53: 27.13408533
B54: 15 | C54: -320.6933411 | D54: 1760.693341 | E54: 27.34965843
B55: 16 | C55: -311.9044256 | D55: 1751.904426 | E55: 27.56415546
B56: 17 | C56: -303.159382 | D56: 1743.159382 | E56: 27.77758177
B57: 18 | C57: -294.4579914 | D57: 1734.457991 | E57: 27.98994271
B58: 19 | C58: -285.8000358 | D58: 1725.800036 | E58: 28.2012436
B59: 20 | C59: -277.1852984 | D59: 1717.185298 | E59: 28.41148973
B60: 21 | C60: -268.6135636 | D60: 1708.613564 | E60: 28.62068637
B61: 22 | C61: -260.0846165 | D61: 1700.084617 | E61: 28.82883876
B62: 23 | C62: -251.5982437 | D62: 1691.598244 | E62: 29.03595211
B63: 24 | C63: -243.1542327 | D63: 1683.154233 | E63: 29.2420316
B64: 25 | C64: -234.7523719 | D64: 1674.752372 | E64: 29.44708239
B65: 26 | C65: -226.3924509 | D65: 1666.392451 | E65: 29.65110963
B66: 27 | C66: -218.0742605 | D66: 1658.074261 | E66: 29.85411841
B67: 28 | C67: -209.7975923 | D67: 1649.797592 | E67: 30.05611383
B68: 29 | C68: -201.562239 | D68: 1641.562239 | E68: 30.25710095
B69: 30 | C69: -193.3679945 | D69: 1633.367994 | E69: 30.45708478
B70: 31 | C70: -185.2146534 | D70: 1625.214653 | E70: 30.65607035
B71: 32 | C71: -177.1020117 | D71: 1617.102012 | E71: 30.85406264
B72: 33 | C72: -169.0298661 | D72: 1609.029866 | E72: 31.0510666
B73: 34 | C73: -160.9980145 | D73: 1600.998015 | E73: 31.24708718
B74: 35 | C74: -153.0062558 | D74: 1593.006256 | E74: 31.44212926
B75: 36 | C75: -145.0543899 | D75: 1585.05439 | E75: 31.63619775
B76: 37 | C76: -137.1422176 | D76: 1577.142218 | E76: 31.8292975
B77: 38 | C77: -129.2695407 | D77: 1569.269541 | E77: 32.02143335
B78: 39 | C78: -121.4361622 | D78: 1561.436162 | E78: 32.21261011
B79: 40 | C79: -113.6418858 | D79: 1553.641886 | E79: 32.40283256
B80: 41 | C80: -105.8865164 | D80: 1545.886516 | E80: 32.59210548
B81: 42 | C81: -98.16985973 | D81: 1538.16986 | E81: 32.78043359
B82: 43 | C82: -90.49172258 | D82: 1530.491723 | E82: 32.96782162
B83: 44 | C83: -82.85191266 | D83: 1522.851913 | E83: 33.15427425
B84: 45 | C84: -75.25023865 | D84: 1515.250239 | E84: 33.33979617
B85: 46 | C85: -67.68651019 | D85: 1507.68651 | E85: 33.52439201
B86: 47 | C86: -60.16053786 | D86: 1500.160538 | E86: 33.70806639
B87: 48 | C87: -52.67213319 | D87: 1492.672133 | E87: 33.89082392
B88: 49 | C88: -45.22110865 | D88: 1485.221109 | E88: 34.07266918
B89: 50 | C89: -37.80727767 | D89: 1477.807278 | E89: 34.25360671
B90: 51 | C90: -30.43045456 | D90: 1470.430455 | E90: 34.43364104
B91: 52 | C91: -23.09045461 | D91: 1463.090455 | E91: 34.6127767
B92: 53 | C92: -15.78709399 | D92: 1455.787094 | E92: 34.79101816
B93: 54 | C93: -8.520189818 | D93: 1448.52019 | E93: 34.96836988
B94: 55 | C94: -1.28956011 | D94: 1441.28956 | E94: 35.14483631
B95: 56 | C95: 5.904976206 | D95: 1434.095024 | E95: 35.32042186
B96: 57 | C96: 13.0635993 | D96: 1426.936401 | E96: 35.49513094
B97: 58 | C97: 20.18648844 | D97: 1419.813512 | E97: 35.66896792
B98: 59 | C98: 27.273822 | D98: 1412.726178 | E98: 35.84193715
B99: 60 | C99: 34.32577747 | D99: 1405.674223 | E99: 36.01404296

Sheet Mod Temp2
A1: Accommodation Module
B2: length | C2: 15 | D2: m
B3: breadth | C3: 15 | D3: m
B4: height | C4: 30.25 | D4: m
B5: Surface Area (A) | C5: =2*(C2*C3)+2*(C2*C4)+2*(C3*C4) -> 2265 | D5: m2
B6: Enclosed Volume | C6: =C2*C3*C4 -> 6806.25 | D6: m3
B7: U | C7: 0.3 | D7: w/m2degC
A8: (initial) | B8: Ti | C8: 24 | D8: degC
B9: To | C9: 10 | D9: degC
B10: Gains | C10: 58.35 | D10: kW (kj/s)
H33: To
C34: Module heat | D34: Surplus | F34: Module heat | G34: Surplus | H34: 5 | I34: Module heat | J34: Surplus | L34: Module heat | M34: Surplus | O34: Module heat | P34: Surplus | R34: Module heat | S34: Surplus | U34: Module heat | V34: Surplus | X34: Module heat | Y34: Surplus
C35: Loss | D35: Energy | F35: Loss | G35: Energy | I35: Loss | J35: Energy | L35: Loss | M35: Energy | O35: Loss | P35: Energy | R35: Loss | S35: Energy | U35: Loss | V35: Energy | X35: Loss | Y35: Energy
C36: kj | D36: kj | F36: kj | G36: kj | I36: kj | J36: kj | L36: kj | M36: kj | O36: kj | P36: kj | R36: kj | S36: kj | U36: kj | V36: kj | X36: kj | Y36: kj
AG37: Minutes | AH37: 0 | AI37: 5 | AJ37: 10 | AK37: 15 | AL37: 20 | AM37: 25 | AN37: 30 | AO37: 35
C38: =($C$7*$C$5*($C$8-0))*0.06 -> 978.48 | D38: =($C$10*60)-C38 -> 2522.52 | F38: =($C$7*$C$5*($C$8-5))*0.06 -> 774.63 | G38: =($C$10*60)-F38 -> 2726.37 | I38: =($C$7*$C$5*($C$8-10))*0.06 -> 570.78 | J38: =($C$10*60)-I38 -> 2930.22 | L38: =($C$7*$C$5*($C$8-15)*0.06) -> 366.93 | M38: =($C$10*60)-L38 -> 3134.07 | O38: =($C$7*$C$5*($C$8-20))*0.06 -> 163.08 | P38: =($C$10*60)-O38 -> 3337.92 | R38: =($C$7*$C$5*($C$8-25))*0.06 -> -40.77 | S38: =($C$10*60)-R38 -> 3541.77 | U38: =($C$7*$C$5*($C$8-30))*0.06 -> -244.62 | V38: =($C$10*60)-U38 -> 3745.62 | X38: =($C$7*$C$5*($C$8-35))*0.06 -> -448.47 | Y38: =($C$10*60)-X38 -> 3949.47 | AG38: 0 | AH38: =C8 -> 24 | AI38: =C8 -> 24 | AJ38: =C8 -> 24 | AK38: =C8 -> 24 | AL38: =C8 -> 24 | AM38: =C8 -> 24 | AN38: =C8 -> 24 | AO38: =C8 -> 24
C39: =($C$7*$C$5*(AH39-0))*0.06 -> 991.0717527 | D39: 2509.928247 | F39: =($C$7*$C$5*(AI39-5))*0.06 -> 788.239318 | G39: 2712.760682 | I39: =($C$7*$C$5*(AJ39-10))*0.06 -> 585.4068833 | J39: 2915.593117 | L39: =($C$7*$C$5*(AK39-15)*0.06) -> 382.5744486 | M39: 3118.425551 | O39: =($C$7*$C$5*(AL39-20))*0.06 -> 179.7420139 | P39: 3321.257986 | R39: =($C$7*$C$5*(AM39-25))*0.06 -> -23.09042083 | S39: 3524.090421 | U39: =($C$7*$C$5*(AN39-30))*0.06 -> -225.9228555 | V39: 3726.922856 | X39: =($C$7*$C$5*(AO39-35))*0.06 -> -428.7552902 | Y39: 3929.75529 | AG39: 1 | AH39: =AH38+(D38/($C$6*1.2)) -> 24.30884848 | AI39: =$C$8+(G38/($C$6*1.2)) -> 24.33380716 | AJ39: =$C$8+(J38/($C$6*1.2)) -> 24.35876584 | AK39: =$C$8+(M38/($C$6*1.2)) -> 24.38372452 | AL39: =$C$8+(P38/($C$6*1.2)) -> 24.4086832 | AM39: =$C$8+(S38/($C$6*1.2)) -> 24.43364187 | AN39: =$C$8+(V38/($C$6*1.2)) -> 24.45860055 | AO39: =$C$8+(Y38/($C$6*1.2)) -> 24.48355923
C40: 1003.600651 | D40: 2497.399349 | F40: 801.7807019 | G40: 2699.219298 | I40: 599.9607531 | J40: 2901.039247 | L40: 398.1408042 | M40: 3102.859196 | O40: 196.3208554 | P40: 3304.679145 | R40: -5.499093437 | S40: 3506.499093 | U40: -207.3190423 | V40: 3708.319042 | X40: -409.1389911 | Y40: 3910.138991 | AG40: 2 | AH40: 24.61615528 | AI40: =AI39+(G39/($C$6*1.2)) -> 24.66594805 | AJ40: =AJ39+(J39/($C$6*1.2)) -> 24.71574082 | AK40: =AK39+(M39/($C$6*1.2)) -> 24.76553358 | AL40: =AL39+(P39/($C$6*1.2)) -> 24.81532635 | AM40: =AM39+(S39/($C$6*1.2)) -> 24.86511912 | AN40: =AN39+(V39/($C$6*1.2)) -> 24.91491189 | AO40: =AO39+(Y39/($C$6*1.2)) -> 24.96470466
C41: 1016.067008 | D41: 2484.932992 | F41: 815.2544908 | G41: 2685.745509 | I41: 614.4419738 | J41: 2886.558026 | L41: 413.6294568 | M41: 3087.370543 | O41: 212.8169397 | P41: 3288.18306 | R41: 12.0044227 | S41: 3488.995577 | U41: -188.8080943 | V41: 3689.808094 | X41: -389.6206114 | Y41: 3890.620611 | AG41: 3 | AH41: 24.92192808 | AI41: 24.99643097 | AJ41: 25.07093387 | AK41: 25.14543676 | AL41: 25.21993965 | AM41: 25.29444255 | AN41: 25.36894544 | AO41: 25.44344834
C42: 1028.471136 | D42: 2472.528864 | F42: 828.6610221 | G42: 2672.338978 | I42: 628.8509081 | J42: 2872.149092 | L42: 429.040794 | M42: 3071.959206 | O42: 229.23068 | P42: 3271.76932 | R42: 29.42056591 | S42: 3471.579434 | U42: -170.3895481 | V42: 3671.389548 | X42: -370.1996622 | Y42: 3871.199662 | AG42: 4 | AH42: 25.22617454 | AI42: 25.32526422 | AJ42: 25.42435389 | AK42: 25.52344356 | AL42: 25.62253323 | AM42: 25.72162291 | AN42: 25.82071258 | AO42: 25.91980225
C43: 1040.813346 | D43: 2460.186654 | F43: 842.0006316 | G43: 2658.999368 | I43: 643.1879168 | J43: 2857.812083 | L43: 444.3752019 | M43: 3056.624798 | O43: 245.5624871 | P43: 3255.437513 | R43: 46.74977234 | S43: 3454.250228 | U43: -152.0629425 | V43: 3653.062942 | X43: -350.8756573 | Y43: 3851.875657 | AG43: 5 | AH43: 25.52890229 | AI43: 25.65245601 | AJ43: 25.77600973 | AK43: 25.89956345 | AL43: 26.02311717 | AM43: 26.14667089 | AN43: 26.27022461 | AO43: 26.39377834
C44: 1053.093948 | D44: 2447.906052 | F44: 855.2736532 | G44: 2645.726347 | I44: 657.4533589 | J44: 2843.546641 | L44: 459.6330646 | M44: 3041.366935 | O44: 261.8127703 | P44: 3239.18723 | R44: 63.99247596 | S44: 3437.007524 | U44: -133.8278184 | V44: 3634.827818 | X44: -331.6481127 | Y44: 3832.648113 | AG44: 6 | AH44: 25.8301189 | AI44: 25.97801455 | AJ44: 26.1259102 | AK44: 26.27380585 | AL44: 26.4217015 | AM44: 26.56959715 | AN44: 26.7174928 | AO44: 26.86538846
C45: 1065.313247 | D45: 2435.686753 | F45: 868.4804194 | G45: 2632.519581 | I45: 671.6475917 | J45: 2829.352408 | L45: 474.814764 | M45: 3026.185236 | O45: 277.9819363 | P45: 3223.018064 | R45: 81.14910856 | S45: 3419.850891 | U45: -115.6837192 | V45: 3616.683719 | X45: -312.5165469 | Y45: 3813.516547 | AG45: 7 | AH45: 26.12983191 | AI45: 26.30194799 | AJ45: 26.47406406 | AK45: 26.64618013 | AL45: 26.8182962 | AM45: 26.99041228 | AN45: 27.16252835 | AO45: 27.33464442
C46: 1077.471551 | D46: 2423.528449 | F46: 881.621261 | G46: 2619.378739 | I46: 685.7709707 | J46: 2815.229029 | L46: 489.9206804 | M46: 3011.07932 | O46: 294.0703901 | P46: 3206.92961 | R46: 98.22009978 | S46: 3402.7799 | U46: -97.63019051 | V46: 3598.630191 | X46: -293.4804808 | Y46: 3794.480481 | AG46: 8 | AH46: 26.42804884 | AI46: 26.62426443 | AJ46: 26.82048003 | AK46: 27.01669562 | AL46: 27.21291121 | AM46: 27.4091268 | AN46: 27.6053424 | AO46: 27.80155799
C47: 1089.569164 | D47: 2411.430836 | F47: 894.6965069 | G47: 2606.303493 | I47: 699.8238495 | J47: 2801.176151 | L47: 504.951192 | M47: 2996.048808 | O47: 310.0785346 | P47: 3190.921465 | R47: 115.2058771 | S47: 3385.794123 | U47: -79.6667803 | V47: 3580.66678 | X47: -274.5394377 | Y47: 3775.539438 | AG47: 9 | AH47: 26.72477715 | AI47: 26.94497196 | AJ47: 27.16516678 | AK47: 27.38536159 | AL47: 27.6055564 | AM47: 27.82575122 | AN47: 28.04594603 | AO47: 28.26614085
C48: 1101.606389 | D48: 2399.393611 | F48: 907.7064847 | G48: 2593.293515 | I48: 713.80658 | J48: 2787.19342 | L48: 519.9066753 | M48: 2981.093325 | O48: 326.0067707 | P48: 3174.993229 | R48: 132.106866 | S48: 3368.893134 | U48: -61.79303869 | V48: 3562.793039 | X48: -255.6929434 | Y48: 3756.692943 | AG48: 10 | AH48: 27.02002427 | AI48: 27.2640786 | AJ48: 27.50813294 | AK48: 27.75218728 | AL48: 27.99624162 | AM48: 28.24029595 | AN48: 28.48435029 | AO48: 28.72840463
C49: 1113.583528 | D49: 2387.416472 | F49: 920.6515201 | G49: 2580.34848 | I49: 727.7195124 | J49: 2773.280488 | L49: 534.7875048 | M49: 2966.212495 | O49: 341.8554972 | P49: 3159.144503 | R49: 148.9234896 | S49: 3352.07651 | U49: -44.00851807 | V49: 3545.008518 | X49: -236.9405257 | Y49: 3737.940526 | AG49: 11 | AH49: 27.31379759 | AI49: 27.58159235 | AJ49: 27.84938711 | AK49: 28.11718187 | AL49: 28.38497663 | AM49: 28.65277139 | AN49: 28.92056615 | AO49: 29.18836091
C50: 1125.500879 | D50: 2375.499121 | F50: 933.5319373 | G50: 2567.468063 | I50: 741.5629952 | J50: 2759.437005 | L50: 549.5940531 | M50: 2951.405947 | O50: 357.6251111 | P50: 3143.374889 | R50: 165.656169 | S50: 3335.343831 | U50: -26.31277307 | V50: 3527.312773 | X50: -218.2817151 | Y50: 3719.281715 | AG50: 12 | AH50: 27.60610447 | AI50: 27.89752115 | AJ50: 28.18893783 | AK50: 28.4803545 | AL50: 28.77177118 | AM50: 29.06318786 | AN50: 29.35460454 | AO50: 29.64602121
C51: 1137.358743 | D51: 2363.641257 | F51: 946.3480588 | G51: 2554.651941 | I51: 755.337375 | J51: 2745.662625 | L51: 564.3266911 | M51: 2936.673309 | O51: 373.3160072 | P51: 3127.683993 | R51: 182.3053233 | S51: 3318.694677 | U51: -8.705360547 | V51: 3509.705361 | X51: -199.7160444 | Y51: 3700.716044 | AG51: 13 | AH51: 27.89695224 | AI51: 28.21187292 | AJ51: 28.5267936 | AK51: 28.84171428 | AL51: 29.15663496 | AM51: 29.47155564 | AN51: 29.78647632 | AO51: 30.101397
C52: 1149.157415 | D52: 2351.842585 | F52: 959.1002057 | G52: 2541.899794 | I52: 769.0429967 | J52: 2731.957003 | L52: 578.9857876 | M52: 2922.014212 | O52: 388.9285785 | P52: 3112.071421 | R52: 198.8713695 | S52: 3302.128631 | U52: 8.814160426 | V52: 3492.18584 | X52: -181.2430486 | Y52: 3682.243049 | AG52: 14 | AH52: 28.18634817 | AI52: 28.52465552 | AJ52: 28.86296288 | AK52: 29.20127024 | AL52: 29.53957759 | AM52: 29.87788495 | AN52: 30.21619231 | AO52: 30.55449967
C53: 1160.897191 | D53: 2340.102809 | F53: 971.7886973 | G53: 2529.211303 | I53: 782.6802035 | J53: 2718.319796 | L53: 593.5717098 | M53: 2907.42829 | O53: 404.4632161 | P53: 3096.536784 | R53: 215.3547223 | S53: 3285.645278 | U53: 26.24622858 | V53: 3474.753771 | X53: -162.8622652 | Y53: 3663.862265 | AG53: 15 | AH53: 28.47429951 | AI53: 28.8358768 | AJ53: 29.1974541 | AK53: 29.55903139 | AL53: 29.92060868 | AM53: 30.28218598 | AN53: 30.64376327 | AO53: 31.00534057
C54: 1172.578365 | D54: 2328.421635 | F54: 984.4138512 | G54: 2516.586149 | I54: 796.2493371 | J54: 2704.750663 | L54: 608.0848229 | M54: 2892.915177 | O54: 419.9203088 | P54: 3081.079691 | R54: 231.7557946 | S54: 3269.244205 | U54: 43.59128047 | V54: 3457.40872 | X54: -144.5732337 | Y54: 3645.573234 | AG54: 16 | AH54: 28.76081347 | AI54: 29.14554455 | AJ54: 29.53027562 | AK54: 29.91500669 | AL54: 30.29973777 | AM54: 30.68446884 | AN54: 31.06919991 | AO54: 31.45393099
C55: 1184.20123 | D55: 2316.79877 | F55: 996.9759837 | G55: 2504.024016 | I55: 809.7507371 | J55: 2691.249263 | L55: 622.5254904 | M55: 2878.47451 | O55: 435.3002437 | P55: 3065.699756 | R55: 248.0749971 | S55: 3252.925003 | U55: 60.84975044 | V55: 3440.15025 | X55: -126.3754962 | Y55: 3627.375496 | AG55: 17 | AH55: 29.04589724 | AI55: 29.45366651 | AJ55: 29.86143579 | AK55: 30.26920506 | AL55: 30.67697434 | AM55: 31.08474361 | AN55: 31.49251289 | AO55: 31.90028216
C56: 1195.766077 | D56: 2305.233923 | F56: 1009.475409 | G56: 2491.524591 | I56: 823.1847416 | J56: 2677.815258 | L56: 636.8940739 | M56: 2864.105926 | O56: 450.6034062 | P56: 3050.396594 | R56: 264.3127384 | S56: 3236.687262 | U56: 78.02207069 | V56: 3422.977929 | X56: -108.268597 | Y56: 3609.268597 | AG56: 18 | AH56: 29.32955794 | AI56: 29.76025041 | AJ56: 30.19094289 | AK56: 30.62163537 | AL56: 31.05232784 | AM56: 31.48302032 | AN56: 31.9137128 | AO56: 32.34440527
C57: 1207.273195 | D57: 2293.726805 | F57: 1021.912441 | G57: 2479.087559 | I57: 836.5516872 | J57: 2664.448313 | L57: 651.1909332 | M57: 2849.809067 | O57: 465.8301792 | P57: 3035.169821 | R57: 280.4694253 | S57: 3220.530575 | U57: 95.10867127 | V57: 3405.891329 | X57: -90.25208272 | Y57: 3591.252083 | AG57: 19 | AH57: 29.61180268 | AI57: 30.06530393 | AJ57: 30.51880518 | AK57: 30.97230643 | AL57: 31.42580768 | AM57: 31.87930893 | AN57: 32.33281019 | AO57: 32.78631144
C58: 1218.722873 | D58: 2282.277127 | F58: 1034.287391 | G58: 2466.712609 | I58: 849.8519086 | J58: 2651.148091 | L58: 665.4164264 | M58: 2835.583574 | O58: 480.9809443 | P58: 3020.019056 | R58: 296.5454622 | S58: 3204.454538 | U58: 112.10998 | V58: 3388.89002 | X58: -72.32550208 | Y58: 3573.325502 | AG58: 20 | AH58: 29.89263853 | AI58: 30.3688347 | AJ58: 30.84503087 | AK58: 31.32122704 | AL58: 31.79742321 | AM58: 32.27361938 | AN58: 32.74981555 | AO58: 33.22601172
C59: 1230.115397 | D59: 2270.884603 | F59: 1046.600568 | G59: 2454.399432 | I59: 863.0857387 | J59: 2637.914261 | L59: 679.5709097 | M59: 2821.42909 | O59: 496.0560807 | P59: 3004.943919 | R59: 312.5412518 | S59: 3188.458748 | U59: 129.0264228 | V59: 3371.973577 | X59: -54.48840619 | Y59: 3555.488406 | AG59: 21 | AH59: 30.17207252 | AI59: 30.67085032 | AJ59: 31.16962813 | AK59: 31.66840593 | AL59: 32.16718373 | AM59: 32.66596153 | AN59: 33.16473934 | AO59: 33.66351714
C60: 1241.451052 | D60: 2259.548948 | F60: 1058.852281 | G60: 2442.147719 | I60: 876.2535091 | J60: 2624.746491 | L60: 693.6547376 | M60: 2807.345262 | O60: 511.0559661 | P60: 2989.944034 | R60: 328.4571946 | S60: 3172.542805 | U60: 145.8584231 | V60: 3355.141577 | X60: -36.74034836 | Y60: 3537.740348 | AG60: 22 | AH60: 30.45011165 | AI60: 30.97135837 | AJ60: 31.49260508 | AK60: 32.01385179 | AL60: 32.53509851 | AM60: 33.05634522 | AN60: 33.57759193 | AO60: 34.09883865
C61: 1252.730123 | D61: 2248.269877 | F61: 1071.042836 | G61: 2429.957164 | I61: 889.3555494 | J61: 2611.644451 | L61: 707.6682627 | M61: 2793.331737 | O61: 525.980976 | P61: 2975.019024 | R61: 344.2936893 | S61: 3156.706311 | U61: 162.6064026 | V61: 3338.393597 | X61: -19.08088414 | Y61: 3520.080884 | AG61: 23 | AH61: 30.72676288 | AI61: 31.27036635 | AJ61: 31.81396982 | AK61: 32.35757328 | AL61: 32.90117675 | AM61: 33.44478021 | AN61: 33.98838368 | AO61: 34.53198714
C62: 1263.952891 | D62: 2237.047109 | F62: 1083.17254 | G62: 2417.82746 | I62: 902.3921878 | J62: 2598.607812 | L62: 721.611836 | M62: 2779.388164 | O62: 540.8314842 | P62: 2960.168516 | R62: 360.0511323 | S62: 3140.948868 | U62: 179.2707805 | V62: 3321.729219 | X62: -1.509571294 | Y62: 3502.509571 | AG62: 24 | AH62: 31.00203315 | AI62: 31.56788177 | AJ62: 32.13373039 | AK62: 32.699579 | AL62: 33.26542762 | AM62: 33.83127624 | AN62: 34.39712486 | AO62: 34.96297348
C63: 1275.119639 | D63: 2225.880361 | F63: 1095.241695 | G63: 2405.758305 | I63: 915.3637508 | J63: 2585.636249 | L63: 735.4858067 | M63: 2765.514193 | O63: 555.6078625 | P63: 2945.392137 | R63: 375.7299184 | S63: 3125.270082 | U63: 195.8519743 | V63: 3305.148026 | X63: 15.9740302 | Y63: 3485.02597 | AG63: 25 | AH63: 31.27592934 | AI63: 31.86391207 | AJ63: 32.45189479 | AK63: 33.03987752 | AL63: 33.62786025 | AM63: 34.21584298 | AN63: 34.80382571 | AO63: 35.39180844
C64: 1286.230645 | D64: 2214.769355 | F64: 1107.250604 | G64: 2393.749396 | I64: 928.2705631 | J64: 2572.729437 | L64: 749.2905221 | M64: 2751.709478 | O64: 570.3104812 | P64: 2930.689519 | R64: 391.3304402 | S64: 3109.66956 | U64: 212.3503992 | V64: 3288.649601 | X64: 33.37035818 | Y64: 3467.629642 | AG64: 26 | AH64: 31.54845831 | AI64: 32.15846466 | AJ64: 32.76847101 | AK64: 33.37847736 | AL64: 33.98848372 | AM64: 34.59849007 | AN64: 35.20849642 | AO64: 35.81850278
C65: 1297.286188 | D65: 2203.713812 | F65: 1119.199568 | G65: 2381.800432 | I65: 941.1129481 | J65: 2559.887052 | L65: 763.0263281 | M65: 2737.973672 | O65: 584.9397082 | P65: 2916.060292 | R65: 406.8530882 | S65: 3094.146912 | U65: 228.7664683 | V65: 3272.233532 | X65: 50.6798483 | Y65: 3450.320152 | AG65: 27 | AH65: 31.81962688 | AI65: 32.45154692 | AJ65: 33.08346696 | AK65: 33.715387 | AL65: 34.34730704 | AM65: 34.97922708 | AN65: 35.61114712 | AO65: 36.24306716
C66: 1308.286545 | D66: 2192.713455 | F66: 1131.088886 | G66: 2369.911114 | I66: 953.8912273 | J66: 2547.108773 | L66: 776.6935686 | M66: 2724.306431 | O66: 599.49591 | P66: 2901.50409 | R66: 422.2982513 | S66: 3078.701749 | U66: 245.1005927 | V66: 3255.899407 | X66: 67.90293401 | Y66: 3433.097066 | AG66: 28 | AH66: 32.08944186 | AI66: 32.7431662 | AJ66: 33.39689054 | AK66: 34.05061488 | AL66: 34.70433922 | AM66: 35.35806356 | AN66: 36.0117879 | AO66: 36.66551224
C67: 1319.23199 | D67: 2181.76801 | F67: 1142.918855 | G67: 2358.081145 | I67: 966.6057206 | J67: 2534.394279 | L67: 790.2925858 | M67: 2710.707414 | O67: 613.979451 | P67: 2887.020549 | R67: 437.6663162 | S67: 3063.333684 | U67: 261.3531814 | V67: 3239.646819 | X67: 85.04004664 | Y67: 3415.959953 | AG67: 29 | AH67: 32.35790999 | AI67: 33.03332979 | AJ67: 33.70874959 | AK67: 34.38416939 | AL67: 35.05958918 | AM67: 35.73500898 | AN67: 36.41042878 | AO67: 37.08584858
C68: 1330.122799 | D68: 2170.877201 | F68: 1154.689773 | G68: 2346.310227 | I68: 979.2567466 | J68: 2521.743253 | L68: 803.8237204 | M68: 2697.17628 | O68: 628.3906941 | P68: 2872.609306 | R68: 452.9576678 | S68: 3048.042332 | U68: 277.5246416 | V68: 3223.475358 | X68: 102.0916153 | Y68: 3398.908385 | AG68: 30 | AH68: 32.625038 | AI68: 33.32204496 | AJ68: 34.01905192 | AK68: 34.71605888 | AL68: 35.41306584 | AM68: 36.11007279 | AN68: 36.80707975 | AO68: 37.50408671
C69: 1340.959244 | D69: 2160.040756 | F69: 1166.401933 | G69: 2334.598067 | I69: 991.844622 | J69: 2509.155378 | L69: 817.287311 | M69: 2683.712689 | O69: 642.7300001 | P69: 2858.27 | R69: 468.1726891 | S69: 3032.827311 | U69: 293.6153781 | V69: 3207.384622 | X69: 119.0580671 | Y69: 3381.941933 | AG69: 31 | AH69: 32.89083257 | AI69: 33.60931894 | AJ69: 34.3278053 | AK69: 35.04629166 | AL69: 35.76477802 | AM69: 36.48326439 | AN69: 37.20175075 | AO69: 37.92023711
C70: 1351.741596 | D70: 2149.258404 | F70: 1178.055629 | G70: 2322.944371 | I70: 1004.369662 | J70: 2496.630338 | L70: 830.683695 | M70: 2670.316305 | O70: 656.997728 | P70: 2844.002272 | R70: 483.3117609 | S70: 3017.688239 | U70: 309.6257939 | V70: 3191.374206 | X70: 135.9398268 | Y70: 3365.060173 | AG70: 32 | AH70: 33.15530037 | AI70: 33.89515892 | AJ70: 34.63501747 | AK70: 35.37487601 | AL70: 36.11473456 | AM70: 36.85459311 | AN70: 37.59445165 | AO70: 38.3343102
C71: 1362.470126 | D71: 2138.529874 | F71: 1189.651153 | G71: 2311.348847 | I71: 1016.83218 | J71: 2484.16782 | L71: 844.0132078 | M71: 2656.986792 | O71: 671.1942352 | P71: 2829.805765 | R71: 498.3752626 | S71: 3002.624737 | U71: 325.5562899 | V71: 3175.44371 | X71: 152.7373173 | Y71: 3348.262683 | AG71: 33 | AH71: 33.41844802 | AI71: 34.17957207 | AJ71: 34.94069611 | AK71: 35.70182016 | AL71: 36.4629442 | AM71: 37.22406825 | AN71: 37.9851923 | AO71: 38.74631634
C72: 1373.145101 | D72: 2127.854899 | F72: 1201.188795 | G72: 2299.811205 | I72: 1029.232489 | J72: 2471.767511 | L72: 857.2761832 | M72: 2643.723817 | O72: 685.3198772 | P72: 2815.680123 | R72: 513.3635712 | S72: 2987.636429 | U72: 341.4072651 | V72: 3159.592735 | X72: 169.4509591 | Y72: 3331.549041 | AG72: 34 | AH72: 33.6802821 | AI72: 34.4625655 | AJ72: 35.24484889 | AK72: 36.02713228 | AL72: 36.80941568 | AM72: 37.59169907 | AN72: 38.37398247 | AO72: 39.15626586
C73: 1383.76679 | D73: 2117.23321 | F73: 1212.668845 | G73: 2288.331155 | I73: 1041.570899 | J73: 2459.429101 | L73: 870.4729534 | M73: 2630.527047 | O73: 699.3750077 | P73: 2801.624992 | R73: 528.2770621 | S73: 2972.722938 | U73: 357.1791165 | V73: 3143.820884 | X73: 186.0811708 | Y73: 3314.918829 | AG73: 35 | AH73: 33.94080918 | AI73: 34.7441463 | AJ73: 35.54748342 | AK73: 36.35082054 | AL73: 37.15415766 | AM73: 37.95749478 | AN73: 38.7608319 | AO73: 39.56416902
C74: 1394.335459 | D74: 2106.664541 | F74: 1224.091589 | G74: 2276.908411 | I74: 1053.847719 | J74: 2447.152281 | L74: 883.6038487 | M74: 2617.396151 | O74: 713.3599788 | P74: 2787.640021 | R74: 543.1161088 | S74: 2957.883891 | U74: 372.8722389 | V74: 3128.127761 | X74: 202.628369 | Y74: 3298.371631 | AG74: 36 | AH74: 34.20003577 | AI74: 35.02432152 | AJ74: 35.84860728 | AK74: 36.67289303 | AL74: 37.49717878 | AM74: 38.32146453 | AN74: 39.14575028 | AO74: 39.97003603
C75: 1404.851371 | D75: 2096.148629 | F75: 1235.457313 | G75: 2265.542687 | I75: 1066.063256 | J75: 2434.936744 | L75: 896.6691981 | M75: 2604.330802 | O75: 727.2751405 | P75: 2773.724859 | R75: 557.881083 | S75: 2943.118917 | U75: 388.4870254 | V75: 3112.512975 | X75: 219.0929679 | Y75: 3281.907032 | AG75: 37 | AH75: 34.45796838 | AI75: 35.30309819 | AJ75: 36.148228 | AK75: 36.99335781 | AL75: 37.83848763 | AM75: 38.68361744 | AN75: 39.52874725 | AO75: 40.37387706
C76: 1415.31479 | D76: 2085.68521 | F76: 1246.766303 | G76: 2254.233697 | I76: 1078.217816 | J76: 2422.782184 | L76: 909.6693287 | M76: 2591.330671 | O76: 741.1208415 | P76: 2759.879159 | R76: 572.5723543 | S76: 2928.427646 | U76: 404.023867 | V76: 3096.976133 | X76: 235.4753798 | Y76: 3265.52462 | AG76: 38 | AH76: 34.71461345 | AI76: 35.58048328 | AJ76: 36.4463531 | AK76: 37.31222293 | AL76: 38.17809275 | AM76: 39.04396258 | AN76: 39.9098324 | AO76: 40.77570223
C77: 1425.725979 | D77: 2075.274021 | F77: 1258.018842 | G77: 2242.981158 | I77: 1090.311704 | J77: 2410.688296 | L77: 922.6045661 | M77: 2578.395434 | O77: 754.8974284 | P77: 2746.102572 | R77: 587.1902906 | S77: 2913.809709 | U77: 419.4831529 | V77: 3081.516847 | X77: 251.7760151 | Y77: 3249.223985 | AG77: 39 | AH77: 34.96997742 | AI77: 35.85648373 | AJ77: 36.74299004 | AK77: 37.62949635 | AL77: 38.51600266 | AM77: 39.40250897 | AN77: 40.28901528 | AO77: 41.17552159
C78: 1436.085198 | D78: 2064.914802 | F78: 1269.21521 | G78: 2231.78479 | I78: 1102.345222 | J78: 2398.654778 | L78: 935.4752342 | M78: 2565.524766 | O78: 768.6052462 | P78: 2732.394754 | R78: 601.7352581 | S78: 2899.264742 | U78: 434.86527 | V78: 3066.13473 | X78: 267.9952819 | Y78: 3233.004718 | AG78: 40 | AH78: 35.22406668 | AI78: 36.13110646 | AJ78: 37.03814624 | AK78: 37.94518602 | AL78: 38.85222581 | AM78: 39.75926559 | AN78: 40.66630537 | AO78: 41.57334515
C79: 1446.392707 | D79: 2054.607293 | F79: 1280.35569 | G79: 2220.64431 | I79: 1114.318673 | J79: 2386.681327 | L79: 948.2816554 | M79: 2552.718345 | O79: 782.2446381 | P79: 2718.755362 | R79: 616.2076209 | S79: 2884.792379 | U79: 450.1706037 | V79: 3050.829396 | X79: 284.1335865 | Y79: 3216.866414 | AG79: 41 | AH79: 35.47688759 | AI79: 36.40435835 | AJ79: 37.3318291 | AK79: 38.25929986 | AL79: 39.18677062 | AM79: 40.11424138 | AN79: 41.04171213 | AO79: 41.96918289
C80: 1456.648763 | D80: 2044.351237 | F80: 1291.440559 | G80: 2209.559441 | I80: 1126.232355 | J80: 2374.767645 | L80: 961.0241502 | M80: 2539.97585 | O80: 795.8159459 | P80: 2705.184054 | R80: 630.6077416 | S80: 2870.392258 | U80: 465.3995372 | V80: 3035.600463 | X80: 300.1913329 | Y80: 3200.808667 | AG80: 42 | AH80: 35.72844649 | AI80: 36.67624623 | AJ80: 37.62404598 | AK80: 38.57184573 | AL80: 39.51964547 | AM80: 40.46744522 | AN80: 41.41524496 | AO80: 42.36304471
C81: 1466.853624 | D81: 2034.146376 | F81: 1302.470095 | G81: 2198.529905 | I81: 1138.086567 | J81: 2362.913433 | L81: 973.703038 | M81: 2527.296962 | O81: 809.3195093 | P81: 2691.680491 | R81: 644.9359806 | S81: 2856.064019 | U81: 480.5524519 | V81: 3020.447548 | X81: 316.1689233 | Y81: 3184.831077 | AG81: 43 | AH81: 35.97874967 | AI81: 36.94677693 | AJ81: 37.91480419 | AK81: 38.88283144 | AL81: 39.8508587 | AM81: 40.81888596 | AN81: 41.78691322 | AO81: 42.75494048
C82: 1477.007545 | D82: 2023.992455 | F82: 1313.444575 | G82: 2187.555425 | I82: 1149.881606 | J82: 2351.118394 | L82: 986.318636 | M82: 2514.681364 | O82: 822.7556664 | P82: 2678.244334 | R82: 659.1926969 | S82: 2841.807303 | U82: 495.6297273 | V82: 3005.370273 | X82: 332.0667577 | Y82: 3168.933242 | AG82: 44 | AH82: 36.2278034 | AI82: 37.2159572 | AJ82: 38.204111 | AK82: 39.1922648 | AL82: 40.1804186 | AM82: 41.1685724 | AN82: 42.1567262 | AO82: 43.14488
C83: 1487.11078 | D83: 2013.88922 | F83: 1324.364273 | G83: 2176.635727 | I83: 1161.617767 | J83: 2339.382233 | L83: 998.8712603 | M83: 2502.12874 | O83: 836.1247539 | P83: 2664.875246 | R83: 673.3782474 | S83: 2827.621753 | U83: 510.6317409 | V83: 2990.368259 | X83: 347.8852344 | Y83: 3153.114766 | AG83: 45 | AH83: 36.47561393 | AI83: 37.4837938 | AJ83: 38.49197368 | AK83: 39.50015355 | AL83: 40.50833343 | AM83: 41.5165133 | AN83: 42.52469318 | AO83: 43.53287305
C84: 1497.163582 | D84: 2003.836418 | F84: 1335.229463 | G84: 2165.770537 | I84: 1173.295344 | J84: 2327.704656 | L84: 1011.361225 | M84: 2489.638775 | O84: 849.4271063 | P84: 2651.572894 | R84: 687.4929874 | S84: 2813.507013 | U84: 525.5588684 | V84: 2975.441132 | X84: 363.6247494 | Y84: 3137.375251 | AG84: 46 | AH84: 36.72218745 | AI84: 37.75029343 | AJ84: 38.77839942 | AK84: 39.8065054 | AL84: 40.83461139 | AM84: 41.86271737 | AN84: 42.89082336 | AO84: 43.91892935
C85: 1507.166204 | D85: 1993.833796 | F85: 1346.040417 | G85: 2154.959583 | I85: 1184.91463 | J85: 2316.08537 | L85: 1023.788844 | M85: 2477.211156 | O85: 862.663057 | P85: 2638.336943 | R85: 701.5372703 | S85: 2799.46273 | U85: 540.4114836 | V85: 2960.588516 | X85: 379.285697 | Y85: 3121.714303 | AG85: 47 | AH85: 36.96753014 | AI85: 38.01546277 | AJ85: 39.0633954 | AK85: 40.11132803 | AL85: 41.15926066 | AM85: 42.20719329 | AN85: 43.25512592 | AO85: 44.30305855
C86: 1517.118895 | D86: 1983.881105 | F86: 1356.797405 | G86: 2144.202595 | I86: 1196.475916 | J86: 2304.524084 | L86: 1036.154427 | M86: 2464.845573 | O86: 875.8329372 | P86: 2625.167063 | R86: 715.5114479 | S86: 2785.488552 | U86: 555.1899585 | V86: 2945.810041 | X86: 394.8684692 | Y86: 3106.131531 | AG86: 48 | AH86: 37.21164814 | AI86: 38.27930845 | AJ86: 39.34696875 | AK86: 40.41462906 | AL86: 41.48228936 | AM86: 42.54994967 | AN86: 43.61760997 | AO86: 44.68527028
C87: 1527.021904 | D87: 1973.978096 | F87: 1367.500698 | G87: 2133.499302 | I87: 1207.979491 | J87: 2293.020509 | L87: 1048.458284 | M87: 2452.541716 | O87: 888.937077 | P87: 2612.062923 | R87: 729.4158701 | S87: 2771.58413 | U87: 569.8946632 | V87: 2931.105337 | X87: 410.3734563 | Y87: 3090.626544 | AG87: 49 | AH87: 37.45454757 | AI87: 38.54183708 | AJ87: 39.62912658 | AK87: 40.71641609 | AL87: 41.80370559 | AM87: 42.8909951 | AN87: 43.9782846 | AO87: 45.06557411
C88: 1536.875481 | D88: 1964.124519 | F88: 1378.150562 | G88: 2122.849438 | I88: 1219.425643 | J88: 2281.574357 | L88: 1060.700723 | M88: 2440.299277 | O88: 901.9758043 | P88: 2599.024196 | R88: 743.2508851 | S88: 2757.749115 | U88: 584.5259659 | V88: 2916.474034 | X88: 425.8010467 | Y88: 3075.198953 | AG88: 50 | AH88: 37.69623451 | AI88: 38.80305523 | AJ88: 39.90987595 | AK88: 41.01669668 | AL88: 42.1235174 | AM88: 43.23033812 | AN88: 44.33715884 | AO88: 45.44397956
C89: 1546.679871 | D89: 1954.320129 | F89: 1388.747265 | G89: 2112.252735 | I89: 1230.814658 | J89: 2270.185342 | L89: 1072.882052 | M89: 2428.117948 | O89: 914.9494457 | P89: 2586.050554 | R89: 757.0168393 | S89: 2743.983161 | U89: 599.084233 | V89: 2901.915767 | X89: 441.1516266 | Y89: 3059.848373 | AG89: 51 | AH89: 37.93671502 | AI89: 39.06296946 | AJ89: 40.1892239 | AK89: 41.31547834 | AL89: 42.44173279 | AM89: 43.56798723 | AN89: 44.69424167 | AO89: 45.82049611
C90: 1556.43532 | D90: 1944.56468 | F90: 1399.291072 | G90: 2101.708928 | I90: 1242.146823 | J90: 2258.853177 | L90: 1085.002575 | M90: 2415.997425 | O90: 927.8583262 | P90: 2573.141674 | R90: 770.7140776 | S90: 2730.285922 | U90: 613.569829 | V90: 2887.430171 | X90: 456.4255804 | Y90: 3044.57442 | AG90: 52 | AH90: 38.17599511 | AI90: 39.32158626 | AJ90: 40.46717742 | AK90: 41.61276857 | AL90: 42.75835973 | AM90: 43.90395089 | AN90: 45.04954204 | AO90: 46.1951332
C91: 1566.142073 | D91: 1934.857927 | F91: 1409.782247 | G91: 2091.217753 | I91: 1253.422421 | J91: 2247.577579 | L91: 1097.062595 | M91: 2403.937405 | O91: 940.7027689 | P91: 2560.297231 | R91: 784.3429429 | S91: 2716.657057 | U91: 627.9831168 | V91: 2873.016883 | X91: 471.6232908 | Y91: 3029.376709 | AG91: 53 | AH91: 38.41408077 | AI91: 39.57891212 | AJ91: 40.74374346 | AK91: 41.90857481 | AL91: 43.07340615 | AM91: 44.2382375 | AN91: 45.40306885 | AO91: 46.56790019
C92: 1575.800372 | D92: 1925.199628 | F92: 1420.221053 | G92: 2080.778947 | I92: 1264.641734 | J92: 2236.358266 | L92: 1109.062415 | M92: 2391.937585 | O92: 953.4830956 | P92: 2547.516904 | R92: 797.9037764 | S92: 2703.096224 | U92: 642.3244573 | V92: 2858.675543 | X92: 486.7451381 | Y92: 3014.254862 | AG92: 54 | AH92: 38.65097798 | AI92: 39.83495347 | AJ92: 41.01892896 | AK92: 42.20290446 | AL92: 43.38687995 | AM92: 44.57085544 | AN92: 45.75483094 | AO92: 46.93880643
C93: 1585.41046 | D93: 1915.58954 | F93: 1430.607751 | G93: 2070.392249 | I93: 1275.805043 | J93: 2225.194957 | L93: 1121.002335 | M93: 2379.997665 | O93: 966.1996262 | P93: 2534.800374 | R93: 811.3969179 | S93: 2689.603082 | U93: 656.5942096 | V93: 2844.40579 | X93: 501.7915013 | Y93: 2999.208499 | AG93: 55 | AH93: 38.88669266 | AI93: 40.08971673 | AJ93: 41.29274081 | AK93: 42.49576489 | AL93: 43.69878897 | AM93: 44.90181305 | AN93: 46.10483713 | AO93: 47.3078612
C94: 1594.972576 | D94: 1906.027424 | F94: 1440.942602 | G94: 2060.057398 | I94: 1286.912628 | J94: 2214.087372 | L94: 1132.882654 | M94: 2368.117346 | O94: 978.8526794 | P94: 2522.147321 | R94: 824.8227052 | S94: 2676.177295 | U94: 670.7927311 | V94: 2830.207269 | X94: 516.7627569 | Y94: 2984.237243 | AG94: 56 | AH94: 39.12123071 | AI94: 40.34320829 | AJ94: 41.56518586 | AK94: 42.78716344 | AL94: 44.00914102 | AM94: 45.2311186 | AN94: 46.45309617 | AO94: 47.67507375
C95: 1604.486961 | D95: 1896.513039 | F95: 1451.225864 | G95: 2049.774136 | I95: 1297.964766 | J95: 2203.035234 | L95: 1144.703669 | M95: 2356.296331 | O95: 991.4425718 | P95: 2509.557428 | R95: 838.1814745 | S95: 2662.818525 | U95: 684.9203773 | V95: 2816.079623 | X95: 531.65928 | Y95: 2969.34072 | AG95: 57 | AH95: 39.35459801 | AI95: 40.59543447 | AJ95: 41.83627094 | AK95: 43.07710741 | AL95: 44.31794387 | AM95: 45.55878034 | AN95: 46.79961681 | AO95: 48.04045327
C96: 1613.953852 | D96: 1887.046148 | F96: 1461.457794 | G96: 2039.542206 | I96: 1308.961736 | J96: 2192.038264 | L96: 1156.465677 | M96: 2344.534323 | O96: 1003.969619 | P96: 2497.030381 | R96: 851.4735604 | S96: 2649.52644 | U96: 698.977502 | V96: 2802.022498 | X96: 546.4814436 | Y96: 2954.518556 | AG96: 58 | AH96: 39.5868004 | AI96: 40.84640162 | AJ96: 42.10600283 | AK96: 43.36560405 | AL96: 44.62520527 | AM96: 45.88480648 | AN96: 47.1444077 | AO96: 48.40400892
C97: 1623.373488 | D97: 1877.626512 | F97: 1471.638649 | G97: 2029.361351 | I97: 1319.903811 | J97: 2181.096189 | L97: 1168.168972 | M97: 2332.831028 | O97: 1016.434134 | P97: 2484.565866 | R97: 864.6992957 | S97: 2636.300704 | U97: 712.9644573 | V97: 2788.035543 | X97: 561.2296189 | Y97: 2939.770381 | AG97: 59 | AH97: 39.8178437 | AI97: 41.096116 | AJ97: 42.3743883 | AK97: 43.65266059 | AL97: 44.93093289 | AM97: 46.20920519 | AN97: 47.48747749 | AO97: 48.76574979
AG98: 60 | AH98: 40.04773369 | AI98: 41.34458387 | AJ98: 42.64143405 | AK98: 43.93828423 | AL98: 45.23513441 | AM98: 46.53198459 | AN98: 47.82883476 | AO98: 49.12568494

Sheet temp
B2: <<<back | C2: Airflow due to temperature difference (CIBSE A4-6)
J4: Enter
D5: =J14 -> 40 | I5: A1 | J5: 0.036 | K5: m2 | L5: Area of top opening
B6: A1 | F6: A3 | I6: A3 | J6: 0.08 | K6: m2 | L6: Area of top opening
D8: ti | F8: to | I8: A2 | J8: 0.036 | K8: m2 | L8: Area of bottom opening
D9: =AVERAGE(D5,D12) -> 31 | F9: =J16 -> 18 | I9: A4 | J9: 0.07 | K9: m2 | L9: Area of bottom opening
B11: A2 | F11: A4 | I11: ha | J11: 1.5 | K11: m | L11: mean height diff between openings
D12: =J15 -> 22 | I12: Cd | J12: 0.61 | K12: f | L12: Discharge co-efficient (typ 0.61)
E14: m3/s | I14: Th | J14: 40 | K14: deg C | L14: Temperature at high level
C15: Qb displaced air is | E15: =J12*J20*SQRT((2*J18*J11*9.81)/(J19+273)) -> 0.054130106 | I15: Tl | J15: 22 | K15: deg C | L15: Temperature at low level
I16: to | J16: 18 | K16: deg C | L16: Outside ambient temperature
C17: at outlet | D17: m3/s | E17: kW
C18: A1 | D18: =E15*(J5/(J5+J6)) -> 0.01679899841 | E18: =D18*1.2*1.01*(D5-F9) -> 0.4479284937 | J18: =D9-F9 -> 13 | L18: ti - to
C19: A3 | D19: =E15*(J6/(J6+J5)) -> 0.03733110758 | E19: =D19*1.2*1.01*(D5-F9) -> 0.9953966526 | J19: =AVERAGE(D9,F9) -> 24.5 | L19: (ti + to) / 2
E20: =SUM(E18:E19) -> 1.443325146 | J20: =SQRT(1/(1/POWER(J5+J6,2)+1/POWER(J8+J9,2))) -> 0.07825024759 | L20: Ab

Sheet Acoustic
A1: <<< Back
B2: =CHOOSE($J$32,B32,B33,B34,B35,B36,B37,B38,B39,B40,B41,B42) -> 75 | C2: 65 | D2: 59 | E2: 53 | F2: 50 | G2: 47 | H2: 45 | I2: 43
E5: Octave Band Mid-Frequency (Hz)
B6: 63 | C6: 125 | D6: 250 | E6: 500 | F6: 1k | G6: 2k | H6: 4k | I6: 8k
A7: Octave Band SPL | B7: =B2 -> 75 | C7: 65 | D7: 59 | E7: 53 | F7: 50 | G7: 47 | H7: 45 | I7: 43
A9: "A" Weighting | B9: -26 | C9: -16 | D9: -9 | E9: -3 | F9: 0 | G9: 1 | H9: 1 | I9: -1 | L9: 0 | M9: 3
L10: 1 | M10: 3
A11: "A" Corrected | B11: =B7+B9 -> 49 | C11: 49 | D11: 50 | E11: 50 | F11: 50 | G11: 48 | H11: 46 | I11: 42 | L11: 2 | M11: 2
L12: 3 | M12: 2
A13: Antilog Lp/10 | B13: =POWER(10,(B11/10)) -> 79432.82347 | C13: 79432.82347 | D13: 100000 | E13: 100000 | F13: 100000 | G13: 63095.73445 | H13: 39810.71706 | I13: 15848.93192 | L13: 4 | M13: 1
L14: 5 | M14: 1
A15: Total | H15: 10 log: | I15: =B13+C13+D13+E13+F13+G13+H13+I13 -> 577621.0304 | L15: 6 | M15: 1
L16: 7 | M16: 1
L17: 8 | M17: 1
H18: "A" Weighted SPL | I18: =10*LOG(I15,10) -> 57.61642997 | J18: dB(A) | L18: 9 | M18: 1
L19: 10 | M19: 0
L20: 11 | M20: 0
L21: 12 | M21: 0
L22: 13 | M22: 0
L23: 14 | M23: 0
L24: 15 | M24: 0
L25: 16 | M25: 0
L26: 17 | M26: 0
L27: 18 | M27: 0
L28: 19 | M28: 0
L29: 20 | M29: 0
L30: 21 | M30: 0
L31: 22 | M31: 0
A32: NR20 | B32: 51 | C32: 39 | D32: 31 | E32: 24 | F32: 30 | G32: 17 | H32: 14 | I32: 13 | J32: 7 | L32: 23 | M32: 0
A33: NR25 | B33: 55 | C33: 44 | D33: 35 | E33: 29 | F33: 25 | G33: 22 | H33: 20 | I33: 18 | L33: 24 | M33: 0
A34: NR30 | B34: 59 | C34: 48 | D34: 40 | E34: 34 | F34: 30 | G34: 27 | H34: 25 | I34: 23 | L34: 25 | M34: 0
A35: NR35 | B35: 63 | C35: 52 | D35: 45 | E35: 39 | F35: 35 | G35: 32 | H35: 30 | I35: 28 | L35: 26 | M35: 0
A36: NR40 | B36: 67 | C36: 57 | D36: 49 | E36: 44 | F36: 40 | G36: 37 | H36: 35 | I36: 33 | L36: 27 | M36: 0
A37: NR45 | B37: 71 | C37: 61 | D37: 54 | E37: 48 | F37: 45 | G37: 42 | H37: 40 | I37: 38 | L37: 28 | M37: 0
A38: NR50 | B38: 75 | C38: 65 | D38: 59 | E38: 53 | F38: 50 | G38: 47 | H38: 45 | I38: 43 | L38: 29 | M38: 0
A39: NR55 | B39: 79 | C39: 70 | D39: 63 | E39: 58 | F39: 55 | G39: 52 | H39: 50 | I39: 49 | L39: 30 | M39: 0
A40: NR60 | B40: 83 | C40: 74 | D40: 68 | E40: 63 | F40: 60 | G40: 57 | H40: 55 | I40: 54 | L40: 31 | M40: 0
A41: NR65 | B41: 87 | C41: 78 | D41: 72 | E41: 68 | F41: 65 | G41: 62 | H41: 61 | I41: 59 | L41: 32 | M41: 0
A42: NR70 | B42: 91 | C42: 83 | D42: 77 | E42: 73 | F42: 70 | G42: 68 | H42: 68 | I42: 64 | L42: 33 | M42: 0
L43: 34 | M43: 0
L44: 35 | M44: 0
L45: 36 | M45: 0
L46: 37 | M46: 0
J47: =POWER(10,(J7/10)) -> 1 | L47: 38 | M47: 0
L48: 39 | M48: 0
L49: 40 | M49: 0
L50: 41 | M50: 0
L51: 42 | M51: 0
L52: 43 | M52: 0
L53: 44 | M53: 0
L54: 45 | M54: 0
L55: 46 | M55: 0
L56: 47 | M56: 0
L57: 48 | M57: 0
L58: 49 | M58: 0
L59: 50 | M59: 0
L60: 51 | M60: 0
L61: 52 | M61: 0
L62: 53 | M62: 0
L63: 54 | M63: 0
L64: 55 | M64: 0
L65: 56 | M65: 0
L66: 57 | M66: 0
L67: 58 | M67: 0
L68: 59 | M68: 0
L69: 60 | M69: 0
